{"text_format":"1","workbook":"xlsx","n_sheets":12,"sheets":["Inicio","Materno","Transicion","Primero","Segundo","Tercero","Cuarto","Quinto","Sexto","Resumen","Creditos","Ayuda"],"not_rendered":{"charts":0,"images":27,"macros":1,"external_links":0,"defined_names":10,"comments":0,"pivot_tables":0},"unopened":[],"bounds":{"document_bytes":16777216,"sheet_cells":100000,"rows_first":2000,"rows_last":500,"rows_between":2000,"halvings":0,"cell_chars":16384,"cell_head_chars":4096},"cells_cut":0,"cells_raw":0,"read":"whole","date_system":"1900"}

{"sheet":"Inicio","index":0,"n_rows":0,"n_cols":0,"rows_kept":0,"cut":false,"hidden":false,"merged":[[0,0,1048575,16383]]}

{"sheet":"Materno","index":1,"n_rows":230,"n_cols":17,"rows_kept":230,"cut":false,"hidden":false,"merged":[[6,6,6,7],[6,9,6,10],[1,6,2,8],[1,9,1,10],[2,9,2,10],[5,6,5,7],[5,9,5,10],[142,6,142,7],[142,9,142,10],[9,17,9,18],[51,6,51,7],[51,9,51,10],[52,6,52,7],[52,9,52,10],[55,17,55,18],[96,6,96,7],[96,9,96,10],[97,6,97,7],[97,9,97,10],[100,17,100,18],[191,17,191,18],[143,6,143,7],[143,9,143,10],[146,17,146,18],[187,6,187,7],[187,9,187,10],[188,6,188,7],[188,9,188,10]]}
[]
[null,null,null,null,null,null,"Estadística Grupal",null,null,"Total",null,"Hombres ","Mujeres",null,"Menú Interno"]
[null,null,null,null,null,null,null,null,null,{"$f":"SUM(K3:M3)","v":1},null,{"$f":"COUNTIF(K5:K230,\"H\")","v":1},{"$f":"COUNTIF(K5:K230,\"M\")","v":0},null,"Materno - B"]
[null,null,null,null,null,null,null,null,null,null,null,null,null,null,"Materno - C"]
[null,null,null,null,null,null,null,null,null,null,null,null,null,null,"Materno - D"]
[null,null,null,null,null,null,"Nivel",null,null,"Total",null,"Hombres ","Mujeres",null,"Materno - E"]
[null,null,null,null,null,null,"Materno - A",null,null,{"$f":"SUM(K7:M7)","v":1},null,{"$f":"COUNTIF(K9:K48,\"H\")","v":1},{"$f":"COUNTIF(K9:K48,\"M\")","v":0}]
[null,null,null,"N°","Cédula","I Apellido","II Apellido","Nombre","Fecha Nac","Edad","Sexo","Nacionalidad","Fecha Matrícula","Fecha Salida","Motivo Salida"]
[null,null,null,1,"02-0494-0357","Montero","Pérez","Juan","2000-04-15",{"$f":"IF(I9=\"\",\"\",DATEDIF(I9,TODAY(),\"Y\"))","v":12},"H","Costarricense","2012-02-08"]
[null,null,null,2,null,null,null,null,null,"",null,null,null,null,null,null,"Docente:"]
[null,null,null,3,null,null,null,null,null,"",null,null,null,null,null,null,"Grupo Prof.:"]
[null,null,null,4,null,null,null,null,null,"",null,null,null,null,null,null,"Cédula:"]
[null,null,null,5,null,null,null,null,null,"",null,null,null,null,null,null,"Traslado"]
[null,null,null,6,null,null,null,null,null,"",null,null,null,null,null,null,"Deserción"]
[null,null,null,7,null,null,null,null,null,""]
[null,null,null,8,null,null,null,null,null,""]
[null,null,null,9,null,null,null,null,null,{"$f":"IF(I17=\"\",\"\",DATEDIF(I17,TODAY(),\"Y\"))","v":""},null,null,null,null,null,null,"H"]
[null,null,null,10,null,null,null,null,null,"",null,null,null,null,null,null,"M"]
[null,null,null,11,null,null,null,null,null,""]
[null,null,null,12,null,null,null,null,null,"",null,null,null,null,null,null,"Costarricense"]
[null,null,null,13,null,null,null,null,null,"",null,null,null,null,null,null,"Extranjero"]
[null,null,null,14,null,null,null,null,null,""]
[null,null,null,15,null,null,null,null,null,""]
[null,null,null,16,null,null,null,null,null,""]
[null,null,null,17,null,null,null,null,null,""]
[null,null,null,18,null,null,null,null,null,""]
[null,null,null,19,null,null,null,null,null,""]
[null,null,null,20,null,null,null,null,null,""]
[null,null,null,21,null,null,null,null,null,""]
[null,null,null,22,null,null,null,null,null,""]
[null,null,null,23,null,null,null,null,null,""]
[null,null,null,24,null,null,null,null,null,""]
[null,null,null,25,null,null,null,null,null,""]
[null,null,null,26,null,null,null,null,null,""]
[null,null,null,27,null,null,null,null,null,""]
[null,null,null,28,null,null,null,null,null,""]
[null,null,null,29,null,null,null,null,null,""]
[null,null,null,30,null,null,null,null,null,""]
[null,null,null,31,null,null,null,null,null,""]
[null,null,null,32,null,null,null,null,null,""]
[null,null,null,33,null,null,null,null,null,""]
[null,null,null,34,null,null,null,null,null,""]
[null,null,null,35,null,null,null,null,null,""]
[null,null,null,36,null,null,null,null,null,""]
[null,null,null,37,null,null,null,null,null,""]
[null,null,null,38,null,null,null,null,null,""]
[null,null,null,39,null,null,null,null,null,""]
[null,null,null,40,null,null,null,null,null,""]
[]
[]
[]
[null,null,null,null,null,null,"Nivel",null,null,"Total",null,"Hombres ","Mujeres"]
[null,null,null,null,null,null,"Materno - B",null,null,{"$f":"SUM(K53:M53)","v":0},null,{"$f":"COUNTIF(K55:K94,\"H\")","v":0},{"$f":"COUNTIF(K55:K94,\"M\")","v":0}]
[null,null,null,"N°","Cédula","I Apellido","II Apellido","Nombre","Fecha Nac","Edad","Sexo","Nacionalidad","Fecha Matrícula","Fecha Salida","Motivo Salida"]
[null,null,null,1,null,null,null,null,null,{"$f":"IF(I55=\"\",\"\",DATEDIF(I55,TODAY(),\"Y\"))","v":""}]
[null,null,null,2,null,null,null,null,null,"",null,null,null,null,null,null,"Docente:"]
[null,null,null,3,null,null,null,null,null,"",null,null,null,null,null,null,"Grupo Prof.:"]
[null,null,null,4,null,null,null,null,null,"",null,null,null,null,null,null,"Cédula:"]
[null,null,null,5,null,null,null,null,null,""]
[null,null,null,6,null,null,null,null,null,""]
[null,null,null,7,null,null,null,null,null,""]
[null,null,null,8,null,null,null,null,null,""]
[null,null,null,9,null,null,null,null,null,""]
[null,null,null,10,null,null,null,null,null,{"$f":"IF(I64=\"\",\"\",DATEDIF(I64,TODAY(),\"Y\"))","v":""}]
[null,null,null,11,null,null,null,null,null,""]
[null,null,null,12,null,null,null,null,null,""]
[null,null,null,13,null,null,null,null,null,""]
[null,null,null,14,null,null,null,null,null,""]
[null,null,null,15,null,null,null,null,null,""]
[null,null,null,16,null,null,null,null,null,""]
[null,null,null,17,null,null,null,null,null,""]
[null,null,null,18,null,null,null,null,null,""]
[null,null,null,19,null,null,null,null,null,""]
[null,null,null,20,null,null,null,null,null,""]
[null,null,null,21,null,null,null,null,null,""]
[null,null,null,22,null,null,null,null,null,""]
[null,null,null,23,null,null,null,null,null,""]
[null,null,null,24,null,null,null,null,null,""]
[null,null,null,25,null,null,null,null,null,""]
[null,null,null,26,null,null,null,null,null,""]
[null,null,null,27,null,null,null,null,null,""]
[null,null,null,28,null,null,null,null,null,""]
[null,null,null,29,null,null,null,null,null,""]
[null,null,null,30,null,null,null,null,null,""]
[null,null,null,31,null,null,null,null,null,""]
[null,null,null,32,null,null,null,null,null,""]
[null,null,null,33,null,null,null,null,null,""]
[null,null,null,34,null,null,null,null,null,""]
[null,null,null,35,null,null,null,null,null,""]
[null,null,null,36,null,null,null,null,null,""]
[null,null,null,37,null,null,null,null,null,""]
[null,null,null,38,null,null,null,null,null,""]
[null,null,null,39,null,null,null,null,null,""]
[null,null,null,40,null,null,null,null,null,""]
[]
[]
[null,null,null,null,null,null,"Nivel",null,null,"Total",null,"Hombres ","Mujeres"]
[null,null,null,null,null,null,"Materno - C",null,null,{"$f":"SUM(K98:M98)","v":0},null,{"$f":"COUNTIF(K100:K139,\"H\")","v":0},{"$f":"COUNTIF(K100:K139,\"M\")","v":0}]
[null,null,null,"N°","Cédula","I Apellido","II Apellido","Nombre","Fecha Nac","Edad","Sexo","Nacionalidad","Fecha Matrícula","Fecha Salida","Motivo Salida"]
[null,null,null,1,null,null,null,null,null,{"$f":"IF(I100=\"\",\"\",DATEDIF(I100,TODAY(),\"Y\"))","v":""}]
[null,null,null,2,null,null,null,null,null,"",null,null,null,null,null,null,"Docente:"]
[null,null,null,3,null,null,null,null,null,"",null,null,null,null,null,null,"Grupo Prof.:"]
[null,null,null,4,null,null,null,null,null,"",null,null,null,null,null,null,"Cédula:"]
[null,null,null,5,null,null,null,null,null,""]
[null,null,null,6,null,null,null,null,null,""]
[null,null,null,7,null,null,null,null,null,""]
[null,null,null,8,null,null,null,null,null,""]
[null,null,null,9,null,null,null,null,null,""]
[null,null,null,10,null,null,null,null,null,""]
[null,null,null,11,null,null,null,null,null,{"$f":"IF(I110=\"\",\"\",DATEDIF(I110,TODAY(),\"Y\"))","v":""}]
[null,null,null,12,null,null,null,null,null,""]
[null,null,null,13,null,null,null,null,null,""]
[null,null,null,14,null,null,null,null,null,""]
[null,null,null,15,null,null,null,null,null,""]
[null,null,null,16,null,null,null,null,null,""]
[null,null,null,17,null,null,null,null,null,""]
[null,null,null,18,null,null,null,null,null,""]
[null,null,null,19,null,null,null,null,null,""]
[null,null,null,20,null,null,null,null,null,""]
[null,null,null,21,null,null,null,null,null,""]
[null,null,null,22,null,null,null,null,null,""]
[null,null,null,23,null,null,null,null,null,""]
[null,null,null,24,null,null,null,null,null,""]
[null,null,null,25,null,null,null,null,null,""]
[null,null,null,26,null,null,null,null,null,""]
[null,null,null,27,null,null,null,null,null,""]
[null,null,null,28,null,null,null,null,null,""]
[null,null,null,29,null,null,null,null,null,""]
[null,null,null,30,null,null,null,null,null,""]
[null,null,null,31,null,null,null,null,null,""]
[null,null,null,32,null,null,null,null,null,""]
[null,null,null,33,null,null,null,null,null,""]
[null,null,null,34,null,null,null,null,null,""]
[null,null,null,35,null,null,null,null,null,""]
[null,null,null,36,null,null,null,null,null,""]
[null,null,null,37,null,null,null,null,null,""]
[null,null,null,38,null,null,null,null,null,""]
[null,null,null,39,null,null,null,null,null,""]
[null,null,null,40,null,null,null,null,null,""]
[]
[]
[]
[null,null,null,null,null,null,"Nivel",null,null,"Total",null,"Hombres ","Mujeres"]
[null,null,null,null,null,null,"Materno - D",null,null,{"$f":"SUM(K144:M144)","v":0},null,{"$f":"COUNTIF(K146:K185,\"H\")","v":0},{"$f":"COUNTIF(K146:K185,\"M\")","v":0}]
[null,null,null,"N°","Cédula","I Apellido","II Apellido","Nombre","Fecha Nac","Edad","Sexo","Nacionalidad","Fecha Matrícula","Fecha Salida","Motivo Salida"]
[null,null,null,1,null,null,null,null,null,{"$f":"IF(I146=\"\",\"\",DATEDIF(I146,TODAY(),\"Y\"))","v":""}]
[null,null,null,2,null,null,null,null,null,"",null,null,null,null,null,null,"Docente:"]
[null,null,null,3,null,null,null,null,null,"",null,null,null,null,null,null,"Grupo Prof.:"]
[null,null,null,4,null,null,null,null,null,"",null,null,null,null,null,null,"Cédula:"]
[null,null,null,5,null,null,null,null,null,""]
[null,null,null,6,null,null,null,null,null,""]
[null,null,null,7,null,null,null,null,null,""]
[null,null,null,8,null,null,null,null,null,""]
[null,null,null,9,null,null,null,null,null,""]
[null,null,null,10,null,null,null,null,null,{"$f":"IF(I155=\"\",\"\",DATEDIF(I155,TODAY(),\"Y\"))","v":""}]
[null,null,null,11,null,null,null,null,null,""]
[null,null,null,12,null,null,null,null,null,""]
[null,null,null,13,null,null,null,null,null,""]
[null,null,null,14,null,null,null,null,null,""]
[null,null,null,15,null,null,null,null,null,""]
[null,null,null,16,null,null,null,null,null,""]
[null,null,null,17,null,null,null,null,null,""]
[null,null,null,18,null,null,null,null,null,""]
[null,null,null,19,null,null,null,null,null,""]
[null,null,null,20,null,null,null,null,null,""]
[null,null,null,21,null,null,null,null,null,""]
[null,null,null,22,null,null,null,null,null,""]
[null,null,null,23,null,null,null,null,null,""]
[null,null,null,24,null,null,null,null,null,""]
[null,null,null,25,null,null,null,null,null,""]
[null,null,null,26,null,null,null,null,null,""]
[null,null,null,27,null,null,null,null,null,""]
[null,null,null,28,null,null,null,null,null,""]
[null,null,null,29,null,null,null,null,null,""]
[null,null,null,30,null,null,null,null,null,""]
[null,null,null,31,null,null,null,null,null,""]
[null,null,null,32,null,null,null,null,null,""]
[null,null,null,33,null,null,null,null,null,""]
[null,null,null,34,null,null,null,null,null,""]
[null,null,null,35,null,null,null,null,null,""]
[null,null,null,36,null,null,null,null,null,""]
[null,null,null,37,null,null,null,null,null,""]
[null,null,null,38,null,null,null,null,null,""]
[null,null,null,39,null,null,null,null,null,""]
[null,null,null,40,null,null,null,null,null,""]
[]
[]
[null,null,null,null,null,null,"Nivel",null,null,"Total",null,"Hombres ","Mujeres"]
[null,null,null,null,null,null,"Materno - E",null,null,{"$f":"SUM(K189:M189)","v":0},null,{"$f":"COUNTIF(K191:K230,\"H\")","v":0},{"$f":"COUNTIF(K191:K230,\"M\")","v":0}]
[null,null,null,"N°","Cédula","I Apellido","II Apellido","Nombre","Fecha Nac","Edad","Sexo","Nacionalidad","Fecha Matrícula","Fecha Salida","Motivo Salida"]
[null,null,null,1,null,null,null,null,null,{"$f":"IF(I191=\"\",\"\",DATEDIF(I191,TODAY(),\"Y\"))","v":""}]
[null,null,null,2,null,null,null,null,null,"",null,null,null,null,null,null,"Docente:"]
[null,null,null,3,null,null,null,null,null,"",null,null,null,null,null,null,"Grupo Prof.:"]
[null,null,null,4,null,null,null,null,null,"",null,null,null,null,null,null,"Cédula:"]
[null,null,null,5,null,null,null,null,null,""]
[null,null,null,6,null,null,null,null,null,""]
[null,null,null,7,null,null,null,null,null,""]
[null,null,null,8,null,null,null,null,null,""]
[null,null,null,9,null,null,null,null,null,""]
[null,null,null,10,null,null,null,null,null,""]
[null,null,null,11,null,null,null,null,null,""]
[null,null,null,12,null,null,null,null,null,""]
[null,null,null,13,null,null,null,null,null,""]
[null,null,null,14,null,null,null,null,null,{"$f":"IF(I204=\"\",\"\",DATEDIF(I204,TODAY(),\"Y\"))","v":""}]
[null,null,null,15,null,null,null,null,null,""]
[null,null,null,16,null,null,null,null,null,""]
[null,null,null,17,null,null,null,null,null,""]
[null,null,null,18,null,null,null,null,null,""]
[null,null,null,19,null,null,null,null,null,""]
[null,null,null,20,null,null,null,null,null,""]
[null,null,null,21,null,null,null,null,null,""]
[null,null,null,22,null,null,null,null,null,""]
[null,null,null,23,null,null,null,null,null,""]
[null,null,null,24,null,null,null,null,null,""]
[null,null,null,25,null,null,null,null,null,""]
[null,null,null,26,null,null,null,null,null,""]
[null,null,null,27,null,null,null,null,null,""]
[null,null,null,28,null,null,null,null,null,""]
[null,null,null,29,null,null,null,null,null,""]
[null,null,null,30,null,null,null,null,null,""]
[null,null,null,31,null,null,null,null,null,""]
[null,null,null,32,null,null,null,null,null,""]
[null,null,null,33,null,null,null,null,null,""]
[null,null,null,34,null,null,null,null,null,""]
[null,null,null,35,null,null,null,null,null,""]
[null,null,null,36,null,null,null,null,null,""]
[null,null,null,37,null,null,null,null,null,""]
[null,null,null,38,null,null,null,null,null,""]
[null,null,null,39,null,null,null,null,null,""]
[null,null,null,40,null,null,null,null,null,""]

{"sheet":"Transicion","index":2,"n_rows":230,"n_cols":17,"rows_kept":230,"cut":false,"hidden":false,"merged":[[6,6,6,7],[6,9,6,10],[1,6,2,8],[1,9,1,10],[2,9,2,10],[5,6,5,7],[5,9,5,10],[142,6,142,7],[142,9,142,10],[9,17,9,18],[51,6,51,7],[51,9,51,10],[52,6,52,7],[52,9,52,10],[55,17,55,18],[96,6,96,7],[96,9,96,10],[97,6,97,7],[97,9,97,10],[100,17,100,18],[191,17,191,18],[143,6,143,7],[143,9,143,10],[146,17,146,18],[187,6,187,7],[187,9,187,10],[188,6,188,7],[188,9,188,10]]}
[]
[null,null,null,null,null,null,"Estadística Grupal",null,null,"Total",null,"Hombres ","Mujeres",null,"Menú Interno"]
[null,null,null,null,null,null,null,null,null,{"$f":"SUM(K3:M3)","v":0},null,{"$f":"COUNTIF(K5:K230,\"H\")","v":0},{"$f":"COUNTIF(K5:K230,\"M\")","v":0},null,"Transición - B"]
[null,null,null,null,null,null,null,null,null,null,null,null,null,null,"Transición - C"]
[null,null,null,null,null,null,null,null,null,null,null,null,null,null,"Transición - D"]
[null,null,null,null,null,null,"Nivel",null,null,"Total",null,"Hombres ","Mujeres",null,"Transición - E"]
[null,null,null,null,null,null,"Transición - A",null,null,{"$f":"SUM(K7:M7)","v":0},null,{"$f":"COUNTIF(K9:K48,\"H\")","v":0},{"$f":"COUNTIF(K9:K48,\"M\")","v":0}]
[null,null,null,"N°","Cédula","I Apellido","II Apellido","Nombre","Fecha Nac","Edad","Sexo","Nacionalidad","Fecha Matrícula","Fecha Salida","Motivo Salida"]
[null,null,null,1,null,null,null,null,null,{"$f":"IF(I9=\"\",\"\",DATEDIF(I9,TODAY(),\"Y\"))","v":""}]
[null,null,null,2,null,null,null,null,null,"",null,null,null,null,null,null,"Docente:"]
[null,null,null,3,null,null,null,null,null,"",null,null,null,null,null,null,"Grupo Prof.:"]
[null,null,null,4,null,null,null,null,null,"",null,null,null,null,null,null,"Cédula:"]
[null,null,null,5,null,null,null,null,null,"",null,null,null,null,null,null,"Traslado"]
[null,null,null,6,null,null,null,null,null,"",null,null,null,null,null,null,"Deserción"]
[null,null,null,7,null,null,null,null,null,""]
[null,null,null,8,null,null,null,null,null,""]
[null,null,null,9,null,null,null,null,null,"",null,null,null,null,null,null,"H"]
[null,null,null,10,null,null,null,null,null,"",null,null,null,null,null,null,"M"]
[null,null,null,11,null,null,null,null,null,{"$f":"IF(I19=\"\",\"\",DATEDIF(I19,TODAY(),\"Y\"))","v":""}]
[null,null,null,12,null,null,null,null,null,"",null,null,null,null,null,null,"Costarricense"]
[null,null,null,13,null,null,null,null,null,"",null,null,null,null,null,null,"Extranjero"]
[null,null,null,14,null,null,null,null,null,""]
[null,null,null,15,null,null,null,null,null,""]
[null,null,null,16,null,null,null,null,null,""]
[null,null,null,17,null,null,null,null,null,""]
[null,null,null,18,null,null,null,null,null,""]
[null,null,null,19,null,null,null,null,null,""]
[null,null,null,20,null,null,null,null,null,""]
[null,null,null,21,null,null,null,null,null,""]
[null,null,null,22,null,null,null,null,null,""]
[null,null,null,23,null,null,null,null,null,""]
[null,null,null,24,null,null,null,null,null,""]
[null,null,null,25,null,null,null,null,null,""]
[null,null,null,26,null,null,null,null,null,""]
[null,null,null,27,null,null,null,null,null,""]
[null,null,null,28,null,null,null,null,null,""]
[null,null,null,29,null,null,null,null,null,""]
[null,null,null,30,null,null,null,null,null,""]
[null,null,null,31,null,null,null,null,null,""]
[null,null,null,32,null,null,null,null,null,""]
[null,null,null,33,null,null,null,null,null,""]
[null,null,null,34,null,null,null,null,null,""]
[null,null,null,35,null,null,null,null,null,""]
[null,null,null,36,null,null,null,null,null,""]
[null,null,null,37,null,null,null,null,null,""]
[null,null,null,38,null,null,null,null,null,""]
[null,null,null,39,null,null,null,null,null,""]
[null,null,null,40,null,null,null,null,null,""]
[]
[]
[]
[null,null,null,null,null,null,"Nivel",null,null,"Total",null,"Hombres ","Mujeres"]
[null,null,null,null,null,null,"Transición - B",null,null,{"$f":"SUM(K53:M53)","v":0},null,{"$f":"COUNTIF(K55:K94,\"H\")","v":0},{"$f":"COUNTIF(K55:K94,\"M\")","v":0}]
[null,null,null,"N°","Cédula","I Apellido","II Apellido","Nombre","Fecha Nac","Edad","Sexo","Nacionalidad","Fecha Matrícula","Fecha Salida","Motivo Salida"]
[null,null,null,1,null,null,null,null,null,{"$f":"IF(I55=\"\",\"\",DATEDIF(I55,TODAY(),\"Y\"))","v":""}]
[null,null,null,2,null,null,null,null,null,"",null,null,null,null,null,null,"Docente:"]
[null,null,null,3,null,null,null,null,null,"",null,null,null,null,null,null,"Grupo Prof.:"]
[null,null,null,4,null,null,null,null,null,"",null,null,null,null,null,null,"Cédula:"]
[null,null,null,5,null,null,null,null,null,""]
[null,null,null,6,null,null,null,null,null,""]
[null,null,null,7,null,null,null,null,null,""]
[null,null,null,8,null,null,null,null,null,""]
[null,null,null,9,null,null,null,null,null,""]
[null,null,null,10,null,null,null,null,null,""]
[null,null,null,11,null,null,null,null,null,""]
[null,null,null,12,null,null,null,null,null,""]
[null,null,null,13,null,null,null,null,null,""]
[null,null,null,14,null,null,null,null,null,""]
[null,null,null,15,null,null,null,null,null,""]
[null,null,null,16,null,null,null,null,null,{"$f":"IF(I70=\"\",\"\",DATEDIF(I70,TODAY(),\"Y\"))","v":""}]
[null,null,null,17,null,null,null,null,null,""]
[null,null,null,18,null,null,null,null,null,""]
[null,null,null,19,null,null,null,null,null,""]
[null,null,null,20,null,null,null,null,null,""]
[null,null,null,21,null,null,null,null,null,""]
[null,null,null,22,null,null,null,null,null,""]
[null,null,null,23,null,null,null,null,null,""]
[null,null,null,24,null,null,null,null,null,""]
[null,null,null,25,null,null,null,null,null,""]
[null,null,null,26,null,null,null,null,null,""]
[null,null,null,27,null,null,null,null,null,""]
[null,null,null,28,null,null,null,null,null,""]
[null,null,null,29,null,null,null,null,null,""]
[null,null,null,30,null,null,null,null,null,""]
[null,null,null,31,null,null,null,null,null,""]
[null,null,null,32,null,null,null,null,null,""]
[null,null,null,33,null,null,null,null,null,""]
[null,null,null,34,null,null,null,null,null,""]
[null,null,null,35,null,null,null,null,null,""]
[null,null,null,36,null,null,null,null,null,""]
[null,null,null,37,null,null,null,null,null,""]
[null,null,null,38,null,null,null,null,null,""]
[null,null,null,39,null,null,null,null,null,""]
[null,null,null,40,null,null,null,null,null,""]
[]
[]
[null,null,null,null,null,null,"Nivel",null,null,"Total",null,"Hombres ","Mujeres"]
[null,null,null,null,null,null,"Transicióno - C",null,null,{"$f":"SUM(K98:M98)","v":0},null,{"$f":"COUNTIF(K100:K139,\"H\")","v":0},{"$f":"COUNTIF(K100:K139,\"M\")","v":0}]
[null,null,null,"N°","Cédula","I Apellido","II Apellido","Nombre","Fecha Nac","Edad","Sexo","Nacionalidad","Fecha Matrícula","Fecha Salida","Motivo Salida"]
[null,null,null,1,null,null,null,null,null,{"$f":"IF(I100=\"\",\"\",DATEDIF(I100,TODAY(),\"Y\"))","v":""}]
[null,null,null,2,null,null,null,null,null,"",null,null,null,null,null,null,"Docente:"]
[null,null,null,3,null,null,null,null,null,"",null,null,null,null,null,null,"Grupo Prof.:"]
[null,null,null,4,null,null,null,null,null,"",null,null,null,null,null,null,"Cédula:"]
[null,null,null,5,null,null,null,null,null,""]
[null,null,null,6,null,null,null,null,null,""]
[null,null,null,7,null,null,null,null,null,""]
[null,null,null,8,null,null,null,null,null,""]
[null,null,null,9,null,null,null,null,null,""]
[null,null,null,10,null,null,null,null,null,""]
[null,null,null,11,null,null,null,null,null,""]
[null,null,null,12,null,null,null,null,null,{"$f":"IF(I111=\"\",\"\",DATEDIF(I111,TODAY(),\"Y\"))","v":""}]
[null,null,null,13,null,null,null,null,null,""]
[null,null,null,14,null,null,null,null,null,""]
[null,null,null,15,null,null,null,null,null,""]
[null,null,null,16,null,null,null,null,null,""]
[null,null,null,17,null,null,null,null,null,""]
[null,null,null,18,null,null,null,null,null,""]
[null,null,null,19,null,null,null,null,null,""]
[null,null,null,20,null,null,null,null,null,""]
[null,null,null,21,null,null,null,null,null,""]
[null,null,null,22,null,null,null,null,null,""]
[null,null,null,23,null,null,null,null,null,""]
[null,null,null,24,null,null,null,null,null,""]
[null,null,null,25,null,null,null,null,null,""]
[null,null,null,26,null,null,null,null,null,""]
[null,null,null,27,null,null,null,null,null,""]
[null,null,null,28,null,null,null,null,null,""]
[null,null,null,29,null,null,null,null,null,""]
[null,null,null,30,null,null,null,null,null,""]
[null,null,null,31,null,null,null,null,null,""]
[null,null,null,32,null,null,null,null,null,""]
[null,null,null,33,null,null,null,null,null,""]
[null,null,null,34,null,null,null,null,null,""]
[null,null,null,35,null,null,null,null,null,""]
[null,null,null,36,null,null,null,null,null,""]
[null,null,null,37,null,null,null,null,null,""]
[null,null,null,38,null,null,null,null,null,""]
[null,null,null,39,null,null,null,null,null,""]
[null,null,null,40,null,null,null,null,null,""]
[]
[]
[]
[null,null,null,null,null,null,"Nivel",null,null,"Total",null,"Hombres ","Mujeres"]
[null,null,null,null,null,null,"Transición - D",null,null,{"$f":"SUM(K144:M144)","v":0},null,{"$f":"COUNTIF(K146:K185,\"H\")","v":0},{"$f":"COUNTIF(K146:K185,\"M\")","v":0}]
[null,null,null,"N°","Cédula","I Apellido","II Apellido","Nombre","Fecha Nac","Edad","Sexo","Nacionalidad","Fecha Matrícula","Fecha Salida","Motivo Salida"]
[null,null,null,1,null,null,null,null,null,{"$f":"IF(I146=\"\",\"\",DATEDIF(I146,TODAY(),\"Y\"))","v":""}]
[null,null,null,2,null,null,null,null,null,"",null,null,null,null,null,null,"Docente:"]
[null,null,null,3,null,null,null,null,null,"",null,null,null,null,null,null,"Grupo Prof.:"]
[null,null,null,4,null,null,null,null,null,"",null,null,null,null,null,null,"Cédula:"]
[null,null,null,5,null,null,null,null,null,""]
[null,null,null,6,null,null,null,null,null,""]
[null,null,null,7,null,null,null,null,null,""]
[null,null,null,8,null,null,null,null,null,{"$f":"IF(I153=\"\",\"\",DATEDIF(I153,TODAY(),\"Y\"))","v":""}]
[null,null,null,9,null,null,null,null,null,""]
[null,null,null,10,null,null,null,null,null,""]
[null,null,null,11,null,null,null,null,null,""]
[null,null,null,12,null,null,null,null,null,""]
[null,null,null,13,null,null,null,null,null,""]
[null,null,null,14,null,null,null,null,null,""]
[null,null,null,15,null,null,null,null,null,""]
[null,null,null,16,null,null,null,null,null,""]
[null,null,null,17,null,null,null,null,null,""]
[null,null,null,18,null,null,null,null,null,""]
[null,null,null,19,null,null,null,null,null,""]
[null,null,null,20,null,null,null,null,null,""]
[null,null,null,21,null,null,null,null,null,""]
[null,null,null,22,null,null,null,null,null,""]
[null,null,null,23,null,null,null,null,null,""]
[null,null,null,24,null,null,null,null,null,""]
[null,null,null,25,null,null,null,null,null,""]
[null,null,null,26,null,null,null,null,null,""]
[null,null,null,27,null,null,null,null,null,""]
[null,null,null,28,null,null,null,null,null,""]
[null,null,null,29,null,null,null,null,null,""]
[null,null,null,30,null,null,null,null,null,""]
[null,null,null,31,null,null,null,null,null,""]
[null,null,null,32,null,null,null,null,null,""]
[null,null,null,33,null,null,null,null,null,""]
[null,null,null,34,null,null,null,null,null,""]
[null,null,null,35,null,null,null,null,null,""]
[null,null,null,36,null,null,null,null,null,""]
[null,null,null,37,null,null,null,null,null,""]
[null,null,null,38,null,null,null,null,null,""]
[null,null,null,39,null,null,null,null,null,""]
[null,null,null,40,null,null,null,null,null,""]
[]
[]
[null,null,null,null,null,null,"Nivel",null,null,"Total",null,"Hombres ","Mujeres"]
[null,null,null,null,null,null,"Transición - E",null,null,{"$f":"SUM(K189:M189)","v":0},null,{"$f":"COUNTIF(K191:K230,\"H\")","v":0},{"$f":"COUNTIF(K191:K230,\"M\")","v":0}]
[null,null,null,"N°","Cédula","I Apellido","II Apellido","Nombre","Fecha Nac","Edad","Sexo","Nacionalidad","Fecha Matrícula","Fecha Salida","Motivo Salida"]
[null,null,null,1,null,null,null,null,null,{"$f":"IF(I191=\"\",\"\",DATEDIF(I191,TODAY(),\"Y\"))","v":""}]
[null,null,null,2,null,null,null,null,null,"",null,null,null,null,null,null,"Docente:"]
[null,null,null,3,null,null,null,null,null,"",null,null,null,null,null,null,"Grupo Prof.:"]
[null,null,null,4,null,null,null,null,null,"",null,null,null,null,null,null,"Cédula:"]
[null,null,null,5,null,null,null,null,null,""]
[null,null,null,6,null,null,null,null,null,""]
[null,null,null,7,null,null,null,null,null,""]
[null,null,null,8,null,null,null,null,null,""]
[null,null,null,9,null,null,null,null,null,{"$f":"IF(I199=\"\",\"\",DATEDIF(I199,TODAY(),\"Y\"))","v":""}]
[null,null,null,10,null,null,null,null,null,""]
[null,null,null,11,null,null,null,null,null,""]
[null,null,null,12,null,null,null,null,null,""]
[null,null,null,13,null,null,null,null,null,""]
[null,null,null,14,null,null,null,null,null,""]
[null,null,null,15,null,null,null,null,null,""]
[null,null,null,16,null,null,null,null,null,""]
[null,null,null,17,null,null,null,null,null,""]
[null,null,null,18,null,null,null,null,null,""]
[null,null,null,19,null,null,null,null,null,""]
[null,null,null,20,null,null,null,null,null,""]
[null,null,null,21,null,null,null,null,null,""]
[null,null,null,22,null,null,null,null,null,""]
[null,null,null,23,null,null,null,null,null,""]
[null,null,null,24,null,null,null,null,null,""]
[null,null,null,25,null,null,null,null,null,""]
[null,null,null,26,null,null,null,null,null,""]
[null,null,null,27,null,null,null,null,null,""]
[null,null,null,28,null,null,null,null,null,""]
[null,null,null,29,null,null,null,null,null,""]
[null,null,null,30,null,null,null,null,null,""]
[null,null,null,31,null,null,null,null,null,""]
[null,null,null,32,null,null,null,null,null,""]
[null,null,null,33,null,null,null,null,null,""]
[null,null,null,34,null,null,null,null,null,""]
[null,null,null,35,null,null,null,null,null,""]
[null,null,null,36,null,null,null,null,null,""]
[null,null,null,37,null,null,null,null,null,""]
[null,null,null,38,null,null,null,null,null,""]
[null,null,null,39,null,null,null,null,null,""]
[null,null,null,40,null,null,null,null,null,""]

{"sheet":"Primero","index":3,"n_rows":230,"n_cols":17,"rows_kept":230,"cut":false,"hidden":false,"merged":[[1,9,1,10],[2,9,2,10],[1,6,2,8],[51,6,51,7],[51,9,51,10],[52,6,52,7],[52,9,52,10],[5,6,5,7],[5,9,5,10],[6,6,6,7],[6,9,6,10],[142,6,142,7],[142,9,142,10],[96,6,96,7],[96,9,96,10],[97,6,97,7],[97,9,97,10],[143,6,143,7],[143,9,143,10],[187,6,187,7],[187,9,187,10],[188,6,188,7],[188,9,188,10],[9,17,9,18],[55,17,55,18],[100,17,100,18],[146,17,146,18],[191,17,191,18]]}
[]
[null,null,null,null,null,null,"Estadística Grupal",null,null,"Total",null,"Hombres ","Mujeres",null,"Menú Interno"]
[null,null,null,null,null,null,null,null,null,{"$f":"SUM(K3:M3)","v":0},null,{"$f":"COUNTIF(K5:K230,\"H\")","v":0},{"$f":"COUNTIF(K5:K230,\"M\")","v":0},null,"Primero - B"]
[null,null,null,null,null,null,null,null,null,null,null,null,null,null,"Primero - C"]
[null,null,null,null,null,null,null,null,null,null,null,null,null,null,"Primero - D"]
[null,null,null,null,null,null,"Nivel",null,null,"Total",null,"Hombres ","Mujeres",null,"Primero - E"]
[null,null,null,null,null,null,"Primer Grado - A",null,null,{"$f":"SUM(K7:M7)","v":0},null,{"$f":"COUNTIF(K9:K48,\"H\")","v":0},{"$f":"COUNTIF(K9:K48,\"M\")","v":0}]
[null,null,null,"N°","Cédula","I Apellido","II Apellido","Nombre","Fecha Nac","Edad","Sexo","Nacionalidad","Fecha Matrícula","Fecha Salida","Motivo Salida"]
[null,null,null,1,null,null,null,null,null,{"$f":"IF(I9=\"\",\"\",DATEDIF(I9,TODAY(),\"Y\"))","v":""}]
[null,null,null,2,null,null,null,null,null,"",null,null,null,null,null,null,"Docente:"]
[null,null,null,3,null,null,null,null,null,"",null,null,null,null,null,null,"Grupo Prof.:"]
[null,null,null,4,null,null,null,null,null,"",null,null,null,null,null,null,"Cédula:"]
[null,null,null,5,null,null,null,null,null,"",null,null,null,null,null,null,"Traslado"]
[null,null,null,6,null,null,null,null,null,"",null,null,null,null,null,null,"Deserción"]
[null,null,null,7,null,null,null,null,null,""]
[null,null,null,8,null,null,null,null,null,""]
[null,null,null,9,null,null,null,null,null,{"$f":"IF(I17=\"\",\"\",DATEDIF(I17,TODAY(),\"Y\"))","v":""},null,null,null,null,null,null,"H"]
[null,null,null,10,null,null,null,null,null,"",null,null,null,null,null,null,"M"]
[null,null,null,11,null,null,null,null,null,""]
[null,null,null,12,null,null,null,null,null,"",null,null,null,null,null,null,"Costarricense"]
[null,null,null,13,null,null,null,null,null,"",null,null,null,null,null,null,"Extranjero"]
[null,null,null,14,null,null,null,null,null,""]
[null,null,null,15,null,null,null,null,null,""]
[null,null,null,16,null,null,null,null,null,""]
[null,null,null,17,null,null,null,null,null,""]
[null,null,null,18,null,null,null,null,null,""]
[null,null,null,19,null,null,null,null,null,""]
[null,null,null,20,null,null,null,null,null,""]
[null,null,null,21,null,null,null,null,null,""]
[null,null,null,22,null,null,null,null,null,""]
[null,null,null,23,null,null,null,null,null,""]
[null,null,null,24,null,null,null,null,null,""]
[null,null,null,25,null,null,null,null,null,""]
[null,null,null,26,null,null,null,null,null,""]
[null,null,null,27,null,null,null,null,null,""]
[null,null,null,28,null,null,null,null,null,""]
[null,null,null,29,null,null,null,null,null,""]
[null,null,null,30,null,null,null,null,null,""]
[null,null,null,31,null,null,null,null,null,""]
[null,null,null,32,null,null,null,null,null,""]
[null,null,null,33,null,null,null,null,null,""]
[null,null,null,34,null,null,null,null,null,""]
[null,null,null,35,null,null,null,null,null,""]
[null,null,null,36,null,null,null,null,null,""]
[null,null,null,37,null,null,null,null,null,""]
[null,null,null,38,null,null,null,null,null,""]
[null,null,null,39,null,null,null,null,null,""]
[null,null,null,40,null,null,null,null,null,""]
[]
[]
[]
[null,null,null,null,null,null,"Nivel",null,null,"Total",null,"Hombres ","Mujeres"]
[null,null,null,null,null,null,"Primer Grado - B",null,null,{"$f":"SUM(K53:M53)","v":0},null,{"$f":"COUNTIF(K55:K94,\"H\")","v":0},{"$f":"COUNTIF(K55:K94,\"M\")","v":0}]
[null,null,null,"N°","Cédula","I Apellido","II Apellido","Nombre","Fecha Nac","Edad","Sexo","Nacionalidad","Fecha Matrícula","Fecha Salida","Motivo Salida"]
[null,null,null,1,null,null,null,null,null,{"$f":"IF(I55=\"\",\"\",DATEDIF(I55,TODAY(),\"Y\"))","v":""}]
[null,null,null,2,null,null,null,null,null,"",null,null,null,null,null,null,"Docente:"]
[null,null,null,3,null,null,null,null,null,"",null,null,null,null,null,null,"Grupo Prof.:"]
[null,null,null,4,null,null,null,null,null,"",null,null,null,null,null,null,"Cédula:"]
[null,null,null,5,null,null,null,null,null,""]
[null,null,null,6,null,null,null,null,null,""]
[null,null,null,7,null,null,null,null,null,""]
[null,null,null,8,null,null,null,null,null,""]
[null,null,null,9,null,null,null,null,null,""]
[null,null,null,10,null,null,null,null,null,{"$f":"IF(I64=\"\",\"\",DATEDIF(I64,TODAY(),\"Y\"))","v":""}]
[null,null,null,11,null,null,null,null,null,""]
[null,null,null,12,null,null,null,null,null,""]
[null,null,null,13,null,null,null,null,null,""]
[null,null,null,14,null,null,null,null,null,""]
[null,null,null,15,null,null,null,null,null,""]
[null,null,null,16,null,null,null,null,null,""]
[null,null,null,17,null,null,null,null,null,""]
[null,null,null,18,null,null,null,null,null,""]
[null,null,null,19,null,null,null,null,null,""]
[null,null,null,20,null,null,null,null,null,""]
[null,null,null,21,null,null,null,null,null,""]
[null,null,null,22,null,null,null,null,null,""]
[null,null,null,23,null,null,null,null,null,""]
[null,null,null,24,null,null,null,null,null,""]
[null,null,null,25,null,null,null,null,null,""]
[null,null,null,26,null,null,null,null,null,""]
[null,null,null,27,null,null,null,null,null,""]
[null,null,null,28,null,null,null,null,null,""]
[null,null,null,29,null,null,null,null,null,""]
[null,null,null,30,null,null,null,null,null,""]
[null,null,null,31,null,null,null,null,null,""]
[null,null,null,32,null,null,null,null,null,""]
[null,null,null,33,null,null,null,null,null,""]
[null,null,null,34,null,null,null,null,null,""]
[null,null,null,35,null,null,null,null,null,""]
[null,null,null,36,null,null,null,null,null,""]
[null,null,null,37,null,null,null,null,null,""]
[null,null,null,38,null,null,null,null,null,""]
[null,null,null,39,null,null,null,null,null,""]
[null,null,null,40,null,null,null,null,null,""]
[]
[]
[null,null,null,null,null,null,"Nivel",null,null,"Total",null,"Hombres ","Mujeres"]
[null,null,null,null,null,null,"Primer Grado - C",null,null,{"$f":"SUM(K98:M98)","v":0},null,{"$f":"COUNTIF(K100:K139,\"H\")","v":0},{"$f":"COUNTIF(K100:K139,\"M\")","v":0}]
[null,null,null,"N°","Cédula","I Apellido","II Apellido","Nombre","Fecha Nac","Edad","Sexo","Nacionalidad","Fecha Matrícula","Fecha Salida","Motivo Salida"]
[null,null,null,1,null,null,null,null,null,{"$f":"IF(I100=\"\",\"\",DATEDIF(I100,TODAY(),\"Y\"))","v":""}]
[null,null,null,2,null,null,null,null,null,"",null,null,null,null,null,null,"Docente:"]
[null,null,null,3,null,null,null,null,null,"",null,null,null,null,null,null,"Grupo Prof.:"]
[null,null,null,4,null,null,null,null,null,"",null,null,null,null,null,null,"Cédula:"]
[null,null,null,5,null,null,null,null,null,""]
[null,null,null,6,null,null,null,null,null,""]
[null,null,null,7,null,null,null,null,null,""]
[null,null,null,8,null,null,null,null,null,""]
[null,null,null,9,null,null,null,null,null,""]
[null,null,null,10,null,null,null,null,null,""]
[null,null,null,11,null,null,null,null,null,{"$f":"IF(I110=\"\",\"\",DATEDIF(I110,TODAY(),\"Y\"))","v":""}]
[null,null,null,12,null,null,null,null,null,""]
[null,null,null,13,null,null,null,null,null,""]
[null,null,null,14,null,null,null,null,null,""]
[null,null,null,15,null,null,null,null,null,""]
[null,null,null,16,null,null,null,null,null,""]
[null,null,null,17,null,null,null,null,null,""]
[null,null,null,18,null,null,null,null,null,""]
[null,null,null,19,null,null,null,null,null,""]
[null,null,null,20,null,null,null,null,null,""]
[null,null,null,21,null,null,null,null,null,""]
[null,null,null,22,null,null,null,null,null,""]
[null,null,null,23,null,null,null,null,null,""]
[null,null,null,24,null,null,null,null,null,""]
[null,null,null,25,null,null,null,null,null,""]
[null,null,null,26,null,null,null,null,null,""]
[null,null,null,27,null,null,null,null,null,""]
[null,null,null,28,null,null,null,null,null,""]
[null,null,null,29,null,null,null,null,null,""]
[null,null,null,30,null,null,null,null,null,""]
[null,null,null,31,null,null,null,null,null,""]
[null,null,null,32,null,null,null,null,null,""]
[null,null,null,33,null,null,null,null,null,""]
[null,null,null,34,null,null,null,null,null,""]
[null,null,null,35,null,null,null,null,null,""]
[null,null,null,36,null,null,null,null,null,""]
[null,null,null,37,null,null,null,null,null,""]
[null,null,null,38,null,null,null,null,null,""]
[null,null,null,39,null,null,null,null,null,""]
[null,null,null,40,null,null,null,null,null,""]
[]
[]
[]
[null,null,null,null,null,null,"Nivel",null,null,"Total",null,"Hombres ","Mujeres"]
[null,null,null,null,null,null,"Primer Grado - D",null,null,{"$f":"SUM(K144:M144)","v":0},null,{"$f":"COUNTIF(K146:K185,\"H\")","v":0},{"$f":"COUNTIF(K146:K185,\"M\")","v":0}]
[null,null,null,"N°","Cédula","I Apellido","II Apellido","Nombre","Fecha Nac","Edad","Sexo","Nacionalidad","Fecha Matrícula","Fecha Salida","Motivo Salida"]
[null,null,null,1,null,null,null,null,null,{"$f":"IF(I146=\"\",\"\",DATEDIF(I146,TODAY(),\"Y\"))","v":""}]
[null,null,null,2,null,null,null,null,null,"",null,null,null,null,null,null,"Docente:"]
[null,null,null,3,null,null,null,null,null,"",null,null,null,null,null,null,"Grupo Prof.:"]
[null,null,null,4,null,null,null,null,null,"",null,null,null,null,null,null,"Cédula:"]
[null,null,null,5,null,null,null,null,null,""]
[null,null,null,6,null,null,null,null,null,""]
[null,null,null,7,null,null,null,null,null,""]
[null,null,null,8,null,null,null,null,null,""]
[null,null,null,9,null,null,null,null,null,""]
[null,null,null,10,null,null,null,null,null,{"$f":"IF(I155=\"\",\"\",DATEDIF(I155,TODAY(),\"Y\"))","v":""}]
[null,null,null,11,null,null,null,null,null,""]
[null,null,null,12,null,null,null,null,null,""]
[null,null,null,13,null,null,null,null,null,""]
[null,null,null,14,null,null,null,null,null,""]
[null,null,null,15,null,null,null,null,null,""]
[null,null,null,16,null,null,null,null,null,""]
[null,null,null,17,null,null,null,null,null,""]
[null,null,null,18,null,null,null,null,null,""]
[null,null,null,19,null,null,null,null,null,""]
[null,null,null,20,null,null,null,null,null,""]
[null,null,null,21,null,null,null,null,null,""]
[null,null,null,22,null,null,null,null,null,""]
[null,null,null,23,null,null,null,null,null,""]
[null,null,null,24,null,null,null,null,null,""]
[null,null,null,25,null,null,null,null,null,""]
[null,null,null,26,null,null,null,null,null,""]
[null,null,null,27,null,null,null,null,null,""]
[null,null,null,28,null,null,null,null,null,""]
[null,null,null,29,null,null,null,null,null,""]
[null,null,null,30,null,null,null,null,null,""]
[null,null,null,31,null,null,null,null,null,""]
[null,null,null,32,null,null,null,null,null,""]
[null,null,null,33,null,null,null,null,null,""]
[null,null,null,34,null,null,null,null,null,""]
[null,null,null,35,null,null,null,null,null,""]
[null,null,null,36,null,null,null,null,null,""]
[null,null,null,37,null,null,null,null,null,""]
[null,null,null,38,null,null,null,null,null,""]
[null,null,null,39,null,null,null,null,null,""]
[null,null,null,40,null,null,null,null,null,""]
[]
[]
[null,null,null,null,null,null,"Nivel",null,null,"Total",null,"Hombres ","Mujeres"]
[null,null,null,null,null,null,"Primer Grado - E",null,null,{"$f":"SUM(K189:M189)","v":0},null,{"$f":"COUNTIF(K191:K230,\"H\")","v":0},{"$f":"COUNTIF(K191:K230,\"M\")","v":0}]
[null,null,null,"N°","Cédula","I Apellido","II Apellido","Nombre","Fecha Nac","Edad","Sexo","Nacionalidad","Fecha Matrícula","Fecha Salida","Motivo Salida"]
[null,null,null,1,null,null,null,null,null,{"$f":"IF(I191=\"\",\"\",DATEDIF(I191,TODAY(),\"Y\"))","v":""}]
[null,null,null,2,null,null,null,null,null,"",null,null,null,null,null,null,"Docente:"]
[null,null,null,3,null,null,null,null,null,"",null,null,null,null,null,null,"Grupo Prof.:"]
[null,null,null,4,null,null,null,null,null,"",null,null,null,null,null,null,"Cédula:"]
[null,null,null,5,null,null,null,null,null,""]
[null,null,null,6,null,null,null,null,null,""]
[null,null,null,7,null,null,null,null,null,""]
[null,null,null,8,null,null,null,null,null,""]
[null,null,null,9,null,null,null,null,null,""]
[null,null,null,10,null,null,null,null,null,""]
[null,null,null,11,null,null,null,null,null,""]
[null,null,null,12,null,null,null,null,null,""]
[null,null,null,13,null,null,null,null,null,""]
[null,null,null,14,null,null,null,null,null,""]
[null,null,null,15,null,null,null,null,null,""]
[null,null,null,16,null,null,null,null,null,{"$f":"IF(I206=\"\",\"\",DATEDIF(I206,TODAY(),\"Y\"))","v":""}]
[null,null,null,17,null,null,null,null,null,""]
[null,null,null,18,null,null,null,null,null,""]
[null,null,null,19,null,null,null,null,null,""]
[null,null,null,20,null,null,null,null,null,""]
[null,null,null,21,null,null,null,null,null,""]
[null,null,null,22,null,null,null,null,null,""]
[null,null,null,23,null,null,null,null,null,""]
[null,null,null,24,null,null,null,null,null,""]
[null,null,null,25,null,null,null,null,null,""]
[null,null,null,26,null,null,null,null,null,""]
[null,null,null,27,null,null,null,null,null,""]
[null,null,null,28,null,null,null,null,null,""]
[null,null,null,29,null,null,null,null,null,""]
[null,null,null,30,null,null,null,null,null,""]
[null,null,null,31,null,null,null,null,null,""]
[null,null,null,32,null,null,null,null,null,""]
[null,null,null,33,null,null,null,null,null,""]
[null,null,null,34,null,null,null,null,null,""]
[null,null,null,35,null,null,null,null,null,""]
[null,null,null,36,null,null,null,null,null,""]
[null,null,null,37,null,null,null,null,null,""]
[null,null,null,38,null,null,null,null,null,""]
[null,null,null,39,null,null,null,null,null,""]
[null,null,null,40,null,null,null,null,null,""]

{"sheet":"Segundo","index":4,"n_rows":230,"n_cols":17,"rows_kept":230,"cut":false,"hidden":false,"merged":[[6,6,6,7],[6,9,6,10],[1,6,2,8],[1,9,1,10],[2,9,2,10],[5,6,5,7],[5,9,5,10],[142,6,142,7],[142,9,142,10],[9,17,9,18],[51,6,51,7],[51,9,51,10],[52,6,52,7],[52,9,52,10],[55,17,55,18],[96,6,96,7],[96,9,96,10],[97,6,97,7],[97,9,97,10],[100,17,100,18],[191,17,191,18],[143,6,143,7],[143,9,143,10],[146,17,146,18],[187,6,187,7],[187,9,187,10],[188,6,188,7],[188,9,188,10]]}
[]
[null,null,null,null,null,null,"Estadística Grupal",null,null,"Total",null,"Hombres ","Mujeres",null,"Menú Interno"]
[null,null,null,null,null,null,null,null,null,{"$f":"SUM(K3:M3)","v":0},null,{"$f":"COUNTIF(K5:K230,\"H\")","v":0},{"$f":"COUNTIF(K5:K230,\"M\")","v":0},null,"Segundo - B"]
[null,null,null,null,null,null,null,null,null,null,null,null,null,null,"Segundo - C"]
[null,null,null,null,null,null,null,null,null,null,null,null,null,null,"Segundo - D"]
[null,null,null,null,null,null,"Nivel",null,null,"Total",null,"Hombres ","Mujeres",null,"Segundo - E"]
[null,null,null,null,null,null,"Segundo Grado - A",null,null,{"$f":"SUM(K7:M7)","v":0},null,{"$f":"COUNTIF(K9:K48,\"H\")","v":0},{"$f":"COUNTIF(K9:K48,\"M\")","v":0}]
[null,null,null,"N°","Cédula","I Apellido","II Apellido","Nombre","Fecha Nac","Edad","Sexo","Nacionalidad","Fecha Matrícula","Fecha Salida","Motivo Salida"]
[null,null,null,1,null,null,null,null,null,{"$f":"IF(I9=\"\",\"\",DATEDIF(I9,TODAY(),\"Y\"))","v":""}]
[null,null,null,2,null,null,null,null,null,"",null,null,null,null,null,null,"Docente:"]
[null,null,null,3,null,null,null,null,null,"",null,null,null,null,null,null,"Grupo Prof.:"]
[null,null,null,4,null,null,null,null,null,"",null,null,null,null,null,null,"Cédula:"]
[null,null,null,5,null,null,null,null,null,"",null,null,null,null,null,null,"Traslado"]
[null,null,null,6,null,null,null,null,null,"",null,null,null,null,null,null,"Deserción"]
[null,null,null,7,null,null,null,null,null,""]
[null,null,null,8,null,null,null,null,null,""]
[null,null,null,9,null,null,null,null,null,{"$f":"IF(I17=\"\",\"\",DATEDIF(I17,TODAY(),\"Y\"))","v":""},null,null,null,null,null,null,"H"]
[null,null,null,10,null,null,null,null,null,"",null,null,null,null,null,null,"M"]
[null,null,null,11,null,null,null,null,null,""]
[null,null,null,12,null,null,null,null,null,"",null,null,null,null,null,null,"Costarricense"]
[null,null,null,13,null,null,null,null,null,"",null,null,null,null,null,null,"Extranjero"]
[null,null,null,14,null,null,null,null,null,""]
[null,null,null,15,null,null,null,null,null,""]
[null,null,null,16,null,null,null,null,null,""]
[null,null,null,17,null,null,null,null,null,""]
[null,null,null,18,null,null,null,null,null,""]
[null,null,null,19,null,null,null,null,null,""]
[null,null,null,20,null,null,null,null,null,""]
[null,null,null,21,null,null,null,null,null,""]
[null,null,null,22,null,null,null,null,null,""]
[null,null,null,23,null,null,null,null,null,""]
[null,null,null,24,null,null,null,null,null,""]
[null,null,null,25,null,null,null,null,null,""]
[null,null,null,26,null,null,null,null,null,""]
[null,null,null,27,null,null,null,null,null,""]
[null,null,null,28,null,null,null,null,null,""]
[null,null,null,29,null,null,null,null,null,""]
[null,null,null,30,null,null,null,null,null,""]
[null,null,null,31,null,null,null,null,null,""]
[null,null,null,32,null,null,null,null,null,""]
[null,null,null,33,null,null,null,null,null,""]
[null,null,null,34,null,null,null,null,null,""]
[null,null,null,35,null,null,null,null,null,""]
[null,null,null,36,null,null,null,null,null,""]
[null,null,null,37,null,null,null,null,null,""]
[null,null,null,38,null,null,null,null,null,""]
[null,null,null,39,null,null,null,null,null,""]
[null,null,null,40,null,null,null,null,null,""]
[]
[]
[]
[null,null,null,null,null,null,"Nivel",null,null,"Total",null,"Hombres ","Mujeres"]
[null,null,null,null,null,null,"Segundo Grado - B",null,null,{"$f":"SUM(K53:M53)","v":0},null,{"$f":"COUNTIF(K55:K94,\"H\")","v":0},{"$f":"COUNTIF(K55:K94,\"M\")","v":0}]
[null,null,null,"N°","Cédula","I Apellido","II Apellido","Nombre","Fecha Nac","Edad","Sexo","Nacionalidad","Fecha Matrícula","Fecha Salida","Motivo Salida"]
[null,null,null,1,null,null,null,null,null,{"$f":"IF(I55=\"\",\"\",DATEDIF(I55,TODAY(),\"Y\"))","v":""}]
[null,null,null,2,null,null,null,null,null,"",null,null,null,null,null,null,"Docente:"]
[null,null,null,3,null,null,null,null,null,"",null,null,null,null,null,null,"Grupo Prof.:"]
[null,null,null,4,null,null,null,null,null,"",null,null,null,null,null,null,"Cédula:"]
[null,null,null,5,null,null,null,null,null,""]
[null,null,null,6,null,null,null,null,null,""]
[null,null,null,7,null,null,null,null,null,""]
[null,null,null,8,null,null,null,null,null,""]
[null,null,null,9,null,null,null,null,null,{"$f":"IF(I63=\"\",\"\",DATEDIF(I63,TODAY(),\"Y\"))","v":""}]
[null,null,null,10,null,null,null,null,null,""]
[null,null,null,11,null,null,null,null,null,""]
[null,null,null,12,null,null,null,null,null,""]
[null,null,null,13,null,null,null,null,null,""]
[null,null,null,14,null,null,null,null,null,""]
[null,null,null,15,null,null,null,null,null,""]
[null,null,null,16,null,null,null,null,null,""]
[null,null,null,17,null,null,null,null,null,""]
[null,null,null,18,null,null,null,null,null,""]
[null,null,null,19,null,null,null,null,null,""]
[null,null,null,20,null,null,null,null,null,""]
[null,null,null,21,null,null,null,null,null,""]
[null,null,null,22,null,null,null,null,null,""]
[null,null,null,23,null,null,null,null,null,""]
[null,null,null,24,null,null,null,null,null,""]
[null,null,null,25,null,null,null,null,null,""]
[null,null,null,26,null,null,null,null,null,""]
[null,null,null,27,null,null,null,null,null,""]
[null,null,null,28,null,null,null,null,null,""]
[null,null,null,29,null,null,null,null,null,""]
[null,null,null,30,null,null,null,null,null,""]
[null,null,null,31,null,null,null,null,null,""]
[null,null,null,32,null,null,null,null,null,""]
[null,null,null,33,null,null,null,null,null,""]
[null,null,null,34,null,null,null,null,null,""]
[null,null,null,35,null,null,null,null,null,""]
[null,null,null,36,null,null,null,null,null,""]
[null,null,null,37,null,null,null,null,null,""]
[null,null,null,38,null,null,null,null,null,""]
[null,null,null,39,null,null,null,null,null,""]
[null,null,null,40,null,null,null,null,null,""]
[]
[]
[null,null,null,null,null,null,"Nivel",null,null,"Total",null,"Hombres ","Mujeres"]
[null,null,null,null,null,null,"Segundo Grado - C",null,null,{"$f":"SUM(K98:M98)","v":0},null,{"$f":"COUNTIF(K100:K139,\"H\")","v":0},{"$f":"COUNTIF(K100:K139,\"M\")","v":0}]
[null,null,null,"N°","Cédula","I Apellido","II Apellido","Nombre","Fecha Nac","Edad","Sexo","Nacionalidad","Fecha Matrícula","Fecha Salida","Motivo Salida"]
[null,null,null,1,null,null,null,null,null,{"$f":"IF(I100=\"\",\"\",DATEDIF(I100,TODAY(),\"Y\"))","v":""}]
[null,null,null,2,null,null,null,null,null,"",null,null,null,null,null,null,"Docente:"]
[null,null,null,3,null,null,null,null,null,"",null,null,null,null,null,null,"Grupo Prof.:"]
[null,null,null,4,null,null,null,null,null,"",null,null,null,null,null,null,"Cédula:"]
[null,null,null,5,null,null,null,null,null,""]
[null,null,null,6,null,null,null,null,null,""]
[null,null,null,7,null,null,null,null,null,""]
[null,null,null,8,null,null,null,null,null,""]
[null,null,null,9,null,null,null,null,null,""]
[null,null,null,10,null,null,null,null,null,{"$f":"IF(I109=\"\",\"\",DATEDIF(I109,TODAY(),\"Y\"))","v":""}]
[null,null,null,11,null,null,null,null,null,""]
[null,null,null,12,null,null,null,null,null,""]
[null,null,null,13,null,null,null,null,null,""]
[null,null,null,14,null,null,null,null,null,""]
[null,null,null,15,null,null,null,null,null,""]
[null,null,null,16,null,null,null,null,null,""]
[null,null,null,17,null,null,null,null,null,""]
[null,null,null,18,null,null,null,null,null,""]
[null,null,null,19,null,null,null,null,null,""]
[null,null,null,20,null,null,null,null,null,""]
[null,null,null,21,null,null,null,null,null,""]
[null,null,null,22,null,null,null,null,null,""]
[null,null,null,23,null,null,null,null,null,""]
[null,null,null,24,null,null,null,null,null,""]
[null,null,null,25,null,null,null,null,null,""]
[null,null,null,26,null,null,null,null,null,""]
[null,null,null,27,null,null,null,null,null,""]
[null,null,null,28,null,null,null,null,null,""]
[null,null,null,29,null,null,null,null,null,""]
[null,null,null,30,null,null,null,null,null,""]
[null,null,null,31,null,null,null,null,null,""]
[null,null,null,32,null,null,null,null,null,""]
[null,null,null,33,null,null,null,null,null,""]
[null,null,null,34,null,null,null,null,null,""]
[null,null,null,35,null,null,null,null,null,""]
[null,null,null,36,null,null,null,null,null,""]
[null,null,null,37,null,null,null,null,null,""]
[null,null,null,38,null,null,null,null,null,""]
[null,null,null,39,null,null,null,null,null,""]
[null,null,null,40,null,null,null,null,null,""]
[]
[]
[]
[null,null,null,null,null,null,"Nivel",null,null,"Total",null,"Hombres ","Mujeres"]
[null,null,null,null,null,null,"Segundo Grado - D",null,null,{"$f":"SUM(K144:M144)","v":0},null,{"$f":"COUNTIF(K146:K185,\"H\")","v":0},{"$f":"COUNTIF(K146:K185,\"M\")","v":0}]
[null,null,null,"N°","Cédula","I Apellido","II Apellido","Nombre","Fecha Nac","Edad","Sexo","Nacionalidad","Fecha Matrícula","Fecha Salida","Motivo Salida"]
[null,null,null,1,null,null,null,null,null,{"$f":"IF(I146=\"\",\"\",DATEDIF(I146,TODAY(),\"Y\"))","v":""}]
[null,null,null,2,null,null,null,null,null,"",null,null,null,null,null,null,"Docente:"]
[null,null,null,3,null,null,null,null,null,"",null,null,null,null,null,null,"Grupo Prof.:"]
[null,null,null,4,null,null,null,null,null,"",null,null,null,null,null,null,"Cédula:"]
[null,null,null,5,null,null,null,null,null,""]
[null,null,null,6,null,null,null,null,null,""]
[null,null,null,7,null,null,null,null,null,""]
[null,null,null,8,null,null,null,null,null,""]
[null,null,null,9,null,null,null,null,null,{"$f":"IF(I154=\"\",\"\",DATEDIF(I154,TODAY(),\"Y\"))","v":""}]
[null,null,null,10,null,null,null,null,null,""]
[null,null,null,11,null,null,null,null,null,""]
[null,null,null,12,null,null,null,null,null,""]
[null,null,null,13,null,null,null,null,null,""]
[null,null,null,14,null,null,null,null,null,""]
[null,null,null,15,null,null,null,null,null,""]
[null,null,null,16,null,null,null,null,null,""]
[null,null,null,17,null,null,null,null,null,""]
[null,null,null,18,null,null,null,null,null,""]
[null,null,null,19,null,null,null,null,null,""]
[null,null,null,20,null,null,null,null,null,""]
[null,null,null,21,null,null,null,null,null,""]
[null,null,null,22,null,null,null,null,null,""]
[null,null,null,23,null,null,null,null,null,""]
[null,null,null,24,null,null,null,null,null,""]
[null,null,null,25,null,null,null,null,null,""]
[null,null,null,26,null,null,null,null,null,""]
[null,null,null,27,null,null,null,null,null,""]
[null,null,null,28,null,null,null,null,null,""]
[null,null,null,29,null,null,null,null,null,""]
[null,null,null,30,null,null,null,null,null,""]
[null,null,null,31,null,null,null,null,null,""]
[null,null,null,32,null,null,null,null,null,""]
[null,null,null,33,null,null,null,null,null,""]
[null,null,null,34,null,null,null,null,null,""]
[null,null,null,35,null,null,null,null,null,""]
[null,null,null,36,null,null,null,null,null,""]
[null,null,null,37,null,null,null,null,null,""]
[null,null,null,38,null,null,null,null,null,""]
[null,null,null,39,null,null,null,null,null,""]
[null,null,null,40,null,null,null,null,null,""]
[]
[]
[null,null,null,null,null,null,"Nivel",null,null,"Total",null,"Hombres ","Mujeres"]
[null,null,null,null,null,null,"Segundo Grado - E",null,null,{"$f":"SUM(K189:M189)","v":0},null,{"$f":"COUNTIF(K191:K230,\"H\")","v":0},{"$f":"COUNTIF(K191:K230,\"M\")","v":0}]
[null,null,null,"N°","Cédula","I Apellido","II Apellido","Nombre","Fecha Nac","Edad","Sexo","Nacionalidad","Fecha Matrícula","Fecha Salida","Motivo Salida"]
[null,null,null,1,null,null,null,null,null,{"$f":"IF(I191=\"\",\"\",DATEDIF(I191,TODAY(),\"Y\"))","v":""}]
[null,null,null,2,null,null,null,null,null,"",null,null,null,null,null,null,"Docente:"]
[null,null,null,3,null,null,null,null,null,"",null,null,null,null,null,null,"Grupo Prof.:"]
[null,null,null,4,null,null,null,null,null,"",null,null,null,null,null,null,"Cédula:"]
[null,null,null,5,null,null,null,null,null,""]
[null,null,null,6,null,null,null,null,null,""]
[null,null,null,7,null,null,null,null,null,""]
[null,null,null,8,null,null,null,null,null,""]
[null,null,null,9,null,null,null,null,null,{"$f":"IF(I199=\"\",\"\",DATEDIF(I199,TODAY(),\"Y\"))","v":""}]
[null,null,null,10,null,null,null,null,null,""]
[null,null,null,11,null,null,null,null,null,""]
[null,null,null,12,null,null,null,null,null,""]
[null,null,null,13,null,null,null,null,null,""]
[null,null,null,14,null,null,null,null,null,""]
[null,null,null,15,null,null,null,null,null,""]
[null,null,null,16,null,null,null,null,null,""]
[null,null,null,17,null,null,null,null,null,""]
[null,null,null,18,null,null,null,null,null,""]
[null,null,null,19,null,null,null,null,null,""]
[null,null,null,20,null,null,null,null,null,""]
[null,null,null,21,null,null,null,null,null,""]
[null,null,null,22,null,null,null,null,null,""]
[null,null,null,23,null,null,null,null,null,""]
[null,null,null,24,null,null,null,null,null,""]
[null,null,null,25,null,null,null,null,null,""]
[null,null,null,26,null,null,null,null,null,""]
[null,null,null,27,null,null,null,null,null,""]
[null,null,null,28,null,null,null,null,null,""]
[null,null,null,29,null,null,null,null,null,""]
[null,null,null,30,null,null,null,null,null,""]
[null,null,null,31,null,null,null,null,null,""]
[null,null,null,32,null,null,null,null,null,""]
[null,null,null,33,null,null,null,null,null,""]
[null,null,null,34,null,null,null,null,null,""]
[null,null,null,35,null,null,null,null,null,""]
[null,null,null,36,null,null,null,null,null,""]
[null,null,null,37,null,null,null,null,null,""]
[null,null,null,38,null,null,null,null,null,""]
[null,null,null,39,null,null,null,null,null,""]
[null,null,null,40,null,null,null,null,null,""]

{"sheet":"Tercero","index":5,"n_rows":230,"n_cols":17,"rows_kept":230,"cut":false,"hidden":false,"merged":[[6,6,6,7],[6,9,6,10],[1,6,2,8],[1,9,1,10],[2,9,2,10],[5,6,5,7],[5,9,5,10],[142,6,142,7],[142,9,142,10],[9,17,9,18],[51,6,51,7],[51,9,51,10],[52,6,52,7],[52,9,52,10],[55,17,55,18],[96,6,96,7],[96,9,96,10],[97,6,97,7],[97,9,97,10],[100,17,100,18],[191,17,191,18],[143,6,143,7],[143,9,143,10],[146,17,146,18],[187,6,187,7],[187,9,187,10],[188,6,188,7],[188,9,188,10]]}
[]
[null,null,null,null,null,null,"Estadística General",null,null,"Total",null,"Hombres ","Mujeres",null,"Menú Interno"]
[null,null,null,null,null,null,null,null,null,{"$f":"SUM(K3:M3)","v":0},null,{"$f":"COUNTIF(K5:K230,\"H\")","v":0},{"$f":"COUNTIF(K5:K230,\"M\")","v":0},null,"Tercero - B"]
[null,null,null,null,null,null,null,null,null,null,null,null,null,null,"Tercero - C"]
[null,null,null,null,null,null,null,null,null,null,null,null,null,null,"Tercero - D"]
[null,null,null,null,null,null,"Nivel",null,null,"Total",null,"Hombres ","Mujeres",null,"Tercero - E"]
[null,null,null,null,null,null,"Tercero Grado - A",null,null,{"$f":"SUM(K7:M7)","v":0},null,{"$f":"COUNTIF(K9:K48,\"H\")","v":0},{"$f":"COUNTIF(K9:K48,\"M\")","v":0}]
[null,null,null,"N°","Cédula","I Apellido","II Apellido","Nombre","Fecha Nac","Edad","Sexo","Nacionalidad","Fecha Matrícula","Fecha Salida","Motivo Salida"]
[null,null,null,1,null,null,null,null,null,{"$f":"IF(I9=\"\",\"\",DATEDIF(I9,TODAY(),\"Y\"))","v":""}]
[null,null,null,2,null,null,null,null,null,"",null,null,null,null,null,null,"Docente:"]
[null,null,null,3,null,null,null,null,null,"",null,null,null,null,null,null,"Grupo Prof.:"]
[null,null,null,4,null,null,null,null,null,"",null,null,null,null,null,null,"Cédula:"]
[null,null,null,5,null,null,null,null,null,"",null,null,null,null,null,null,"Traslado"]
[null,null,null,6,null,null,null,null,null,"",null,null,null,null,null,null,"Deserción"]
[null,null,null,7,null,null,null,null,null,{"$f":"IF(I15=\"\",\"\",DATEDIF(I15,TODAY(),\"Y\"))","v":""}]
[null,null,null,8,null,null,null,null,null,""]
[null,null,null,9,null,null,null,null,null,"",null,null,null,null,null,null,"H"]
[null,null,null,10,null,null,null,null,null,"",null,null,null,null,null,null,"M"]
[null,null,null,11,null,null,null,null,null,""]
[null,null,null,12,null,null,null,null,null,"",null,null,null,null,null,null,"Costarricense"]
[null,null,null,13,null,null,null,null,null,"",null,null,null,null,null,null,"Extranjero"]
[null,null,null,14,null,null,null,null,null,""]
[null,null,null,15,null,null,null,null,null,""]
[null,null,null,16,null,null,null,null,null,""]
[null,null,null,17,null,null,null,null,null,""]
[null,null,null,18,null,null,null,null,null,""]
[null,null,null,19,null,null,null,null,null,""]
[null,null,null,20,null,null,null,null,null,""]
[null,null,null,21,null,null,null,null,null,""]
[null,null,null,22,null,null,null,null,null,""]
[null,null,null,23,null,null,null,null,null,""]
[null,null,null,24,null,null,null,null,null,""]
[null,null,null,25,null,null,null,null,null,""]
[null,null,null,26,null,null,null,null,null,""]
[null,null,null,27,null,null,null,null,null,""]
[null,null,null,28,null,null,null,null,null,""]
[null,null,null,29,null,null,null,null,null,""]
[null,null,null,30,null,null,null,null,null,""]
[null,null,null,31,null,null,null,null,null,""]
[null,null,null,32,null,null,null,null,null,""]
[null,null,null,33,null,null,null,null,null,""]
[null,null,null,34,null,null,null,null,null,""]
[null,null,null,35,null,null,null,null,null,""]
[null,null,null,36,null,null,null,null,null,""]
[null,null,null,37,null,null,null,null,null,""]
[null,null,null,38,null,null,null,null,null,""]
[null,null,null,39,null,null,null,null,null,""]
[null,null,null,40,null,null,null,null,null,""]
[]
[]
[]
[null,null,null,null,null,null,"Nivel",null,null,"Total",null,"Hombres ","Mujeres"]
[null,null,null,null,null,null,"Tercero Grado - B",null,null,{"$f":"SUM(K53:M53)","v":0},null,{"$f":"COUNTIF(K55:K94,\"H\")","v":0},{"$f":"COUNTIF(K55:K94,\"M\")","v":0}]
[null,null,null,"N°","Cédula","I Apellido","II Apellido","Nombre","Fecha Nac","Edad","Sexo","Nacionalidad","Fecha Matrícula","Fecha Salida","Motivo Salida"]
[null,null,null,1,null,null,null,null,null,{"$f":"IF(I55=\"\",\"\",DATEDIF(I55,TODAY(),\"Y\"))","v":""}]
[null,null,null,2,null,null,null,null,null,"",null,null,null,null,null,null,"Docente:"]
[null,null,null,3,null,null,null,null,null,"",null,null,null,null,null,null,"Grupo Prof.:"]
[null,null,null,4,null,null,null,null,null,"",null,null,null,null,null,null,"Cédula:"]
[null,null,null,5,null,null,null,null,null,""]
[null,null,null,6,null,null,null,null,null,""]
[null,null,null,7,null,null,null,null,null,""]
[null,null,null,8,null,null,null,null,null,""]
[null,null,null,9,null,null,null,null,null,""]
[null,null,null,10,null,null,null,null,null,""]
[null,null,null,11,null,null,null,null,null,""]
[null,null,null,12,null,null,null,null,null,""]
[null,null,null,13,null,null,null,null,null,{"$f":"IF(I67=\"\",\"\",DATEDIF(I67,TODAY(),\"Y\"))","v":""}]
[null,null,null,14,null,null,null,null,null,""]
[null,null,null,15,null,null,null,null,null,""]
[null,null,null,16,null,null,null,null,null,""]
[null,null,null,17,null,null,null,null,null,""]
[null,null,null,18,null,null,null,null,null,""]
[null,null,null,19,null,null,null,null,null,""]
[null,null,null,20,null,null,null,null,null,""]
[null,null,null,21,null,null,null,null,null,""]
[null,null,null,22,null,null,null,null,null,""]
[null,null,null,23,null,null,null,null,null,""]
[null,null,null,24,null,null,null,null,null,""]
[null,null,null,25,null,null,null,null,null,""]
[null,null,null,26,null,null,null,null,null,""]
[null,null,null,27,null,null,null,null,null,""]
[null,null,null,28,null,null,null,null,null,""]
[null,null,null,29,null,null,null,null,null,""]
[null,null,null,30,null,null,null,null,null,""]
[null,null,null,31,null,null,null,null,null,""]
[null,null,null,32,null,null,null,null,null,""]
[null,null,null,33,null,null,null,null,null,""]
[null,null,null,34,null,null,null,null,null,""]
[null,null,null,35,null,null,null,null,null,""]
[null,null,null,36,null,null,null,null,null,""]
[null,null,null,37,null,null,null,null,null,""]
[null,null,null,38,null,null,null,null,null,""]
[null,null,null,39,null,null,null,null,null,""]
[null,null,null,40,null,null,null,null,null,""]
[]
[]
[null,null,null,null,null,null,"Nivel",null,null,"Total",null,"Hombres ","Mujeres"]
[null,null,null,null,null,null,"Tercero Grado - C",null,null,{"$f":"SUM(K98:M98)","v":0},null,{"$f":"COUNTIF(K100:K139,\"H\")","v":0},{"$f":"COUNTIF(K100:K139,\"M\")","v":0}]
[null,null,null,"N°","Cédula","I Apellido","II Apellido","Nombre","Fecha Nac","Edad","Sexo","Nacionalidad","Fecha Matrícula","Fecha Salida","Motivo Salida"]
[null,null,null,1,null,null,null,null,null,{"$f":"IF(I100=\"\",\"\",DATEDIF(I100,TODAY(),\"Y\"))","v":""}]
[null,null,null,2,null,null,null,null,null,"",null,null,null,null,null,null,"Docente:"]
[null,null,null,3,null,null,null,null,null,"",null,null,null,null,null,null,"Grupo Prof.:"]
[null,null,null,4,null,null,null,null,null,"",null,null,null,null,null,null,"Cédula:"]
[null,null,null,5,null,null,null,null,null,""]
[null,null,null,6,null,null,null,null,null,""]
[null,null,null,7,null,null,null,null,null,""]
[null,null,null,8,null,null,null,null,null,""]
[null,null,null,9,null,null,null,null,null,""]
[null,null,null,10,null,null,null,null,null,{"$f":"IF(I109=\"\",\"\",DATEDIF(I109,TODAY(),\"Y\"))","v":""}]
[null,null,null,11,null,null,null,null,null,""]
[null,null,null,12,null,null,null,null,null,""]
[null,null,null,13,null,null,null,null,null,""]
[null,null,null,14,null,null,null,null,null,""]
[null,null,null,15,null,null,null,null,null,""]
[null,null,null,16,null,null,null,null,null,""]
[null,null,null,17,null,null,null,null,null,""]
[null,null,null,18,null,null,null,null,null,""]
[null,null,null,19,null,null,null,null,null,""]
[null,null,null,20,null,null,null,null,null,""]
[null,null,null,21,null,null,null,null,null,""]
[null,null,null,22,null,null,null,null,null,""]
[null,null,null,23,null,null,null,null,null,""]
[null,null,null,24,null,null,null,null,null,""]
[null,null,null,25,null,null,null,null,null,""]
[null,null,null,26,null,null,null,null,null,""]
[null,null,null,27,null,null,null,null,null,""]
[null,null,null,28,null,null,null,null,null,""]
[null,null,null,29,null,null,null,null,null,""]
[null,null,null,30,null,null,null,null,null,""]
[null,null,null,31,null,null,null,null,null,""]
[null,null,null,32,null,null,null,null,null,""]
[null,null,null,33,null,null,null,null,null,""]
[null,null,null,34,null,null,null,null,null,""]
[null,null,null,35,null,null,null,null,null,""]
[null,null,null,36,null,null,null,null,null,""]
[null,null,null,37,null,null,null,null,null,""]
[null,null,null,38,null,null,null,null,null,""]
[null,null,null,39,null,null,null,null,null,""]
[null,null,null,40,null,null,null,null,null,""]
[]
[]
[]
[null,null,null,null,null,null,"Nivel",null,null,"Total",null,"Hombres ","Mujeres"]
[null,null,null,null,null,null,"Tercero Grado - D",null,null,{"$f":"SUM(K144:M144)","v":0},null,{"$f":"COUNTIF(K146:K185,\"H\")","v":0},{"$f":"COUNTIF(K146:K185,\"M\")","v":0}]
[null,null,null,"N°","Cédula","I Apellido","II Apellido","Nombre","Fecha Nac","Edad","Sexo","Nacionalidad","Fecha Matrícula","Fecha Salida","Motivo Salida"]
[null,null,null,1,null,null,null,null,null,{"$f":"IF(I146=\"\",\"\",DATEDIF(I146,TODAY(),\"Y\"))","v":""}]
[null,null,null,2,null,null,null,null,null,"",null,null,null,null,null,null,"Docente:"]
[null,null,null,3,null,null,null,null,null,"",null,null,null,null,null,null,"Grupo Prof.:"]
[null,null,null,4,null,null,null,null,null,"",null,null,null,null,null,null,"Cédula:"]
[null,null,null,5,null,null,null,null,null,""]
[null,null,null,6,null,null,null,null,null,""]
[null,null,null,7,null,null,null,null,null,""]
[null,null,null,8,null,null,null,null,null,""]
[null,null,null,9,null,null,null,null,null,""]
[null,null,null,10,null,null,null,null,null,""]
[null,null,null,11,null,null,null,null,null,{"$f":"IF(I156=\"\",\"\",DATEDIF(I156,TODAY(),\"Y\"))","v":""}]
[null,null,null,12,null,null,null,null,null,""]
[null,null,null,13,null,null,null,null,null,""]
[null,null,null,14,null,null,null,null,null,""]
[null,null,null,15,null,null,null,null,null,""]
[null,null,null,16,null,null,null,null,null,""]
[null,null,null,17,null,null,null,null,null,""]
[null,null,null,18,null,null,null,null,null,""]
[null,null,null,19,null,null,null,null,null,""]
[null,null,null,20,null,null,null,null,null,""]
[null,null,null,21,null,null,null,null,null,""]
[null,null,null,22,null,null,null,null,null,""]
[null,null,null,23,null,null,null,null,null,""]
[null,null,null,24,null,null,null,null,null,""]
[null,null,null,25,null,null,null,null,null,""]
[null,null,null,26,null,null,null,null,null,""]
[null,null,null,27,null,null,null,null,null,""]
[null,null,null,28,null,null,null,null,null,""]
[null,null,null,29,null,null,null,null,null,""]
[null,null,null,30,null,null,null,null,null,""]
[null,null,null,31,null,null,null,null,null,""]
[null,null,null,32,null,null,null,null,null,""]
[null,null,null,33,null,null,null,null,null,""]
[null,null,null,34,null,null,null,null,null,""]
[null,null,null,35,null,null,null,null,null,""]
[null,null,null,36,null,null,null,null,null,""]
[null,null,null,37,null,null,null,null,null,""]
[null,null,null,38,null,null,null,null,null,""]
[null,null,null,39,null,null,null,null,null,""]
[null,null,null,40,null,null,null,null,null,""]
[]
[]
[null,null,null,null,null,null,"Nivel",null,null,"Total",null,"Hombres ","Mujeres"]
[null,null,null,null,null,null,"Tercero Grado - E",null,null,{"$f":"SUM(K189:M189)","v":0},null,{"$f":"COUNTIF(K191:K230,\"H\")","v":0},{"$f":"COUNTIF(K191:K230,\"M\")","v":0}]
[null,null,null,"N°","Cédula","I Apellido","II Apellido","Nombre","Fecha Nac","Edad","Sexo","Nacionalidad","Fecha Matrícula","Fecha Salida","Motivo Salida"]
[null,null,null,1,null,null,null,null,null,{"$f":"IF(I191=\"\",\"\",DATEDIF(I191,TODAY(),\"Y\"))","v":""}]
[null,null,null,2,null,null,null,null,null,"",null,null,null,null,null,null,"Docente:"]
[null,null,null,3,null,null,null,null,null,"",null,null,null,null,null,null,"Grupo Prof.:"]
[null,null,null,4,null,null,null,null,null,"",null,null,null,null,null,null,"Cédula:"]
[null,null,null,5,null,null,null,null,null,""]
[null,null,null,6,null,null,null,null,null,""]
[null,null,null,7,null,null,null,null,null,""]
[null,null,null,8,null,null,null,null,null,""]
[null,null,null,9,null,null,null,null,null,""]
[null,null,null,10,null,null,null,null,null,{"$f":"IF(I200=\"\",\"\",DATEDIF(I200,TODAY(),\"Y\"))","v":""}]
[null,null,null,11,null,null,null,null,null,""]
[null,null,null,12,null,null,null,null,null,""]
[null,null,null,13,null,null,null,null,null,""]
[null,null,null,14,null,null,null,null,null,""]
[null,null,null,15,null,null,null,null,null,""]
[null,null,null,16,null,null,null,null,null,""]
[null,null,null,17,null,null,null,null,null,""]
[null,null,null,18,null,null,null,null,null,""]
[null,null,null,19,null,null,null,null,null,""]
[null,null,null,20,null,null,null,null,null,""]
[null,null,null,21,null,null,null,null,null,""]
[null,null,null,22,null,null,null,null,null,""]
[null,null,null,23,null,null,null,null,null,""]
[null,null,null,24,null,null,null,null,null,""]
[null,null,null,25,null,null,null,null,null,""]
[null,null,null,26,null,null,null,null,null,""]
[null,null,null,27,null,null,null,null,null,""]
[null,null,null,28,null,null,null,null,null,""]
[null,null,null,29,null,null,null,null,null,""]
[null,null,null,30,null,null,null,null,null,""]
[null,null,null,31,null,null,null,null,null,""]
[null,null,null,32,null,null,null,null,null,""]
[null,null,null,33,null,null,null,null,null,""]
[null,null,null,34,null,null,null,null,null,""]
[null,null,null,35,null,null,null,null,null,""]
[null,null,null,36,null,null,null,null,null,""]
[null,null,null,37,null,null,null,null,null,""]
[null,null,null,38,null,null,null,null,null,""]
[null,null,null,39,null,null,null,null,null,""]
[null,null,null,40,null,null,null,null,null,""]

{"sheet":"Cuarto","index":6,"n_rows":230,"n_cols":17,"rows_kept":230,"cut":false,"hidden":false,"merged":[[6,6,6,7],[6,9,6,10],[1,6,2,8],[1,9,1,10],[2,9,2,10],[5,6,5,7],[5,9,5,10],[142,6,142,7],[142,9,142,10],[9,17,9,18],[51,6,51,7],[51,9,51,10],[52,6,52,7],[52,9,52,10],[55,17,55,18],[96,6,96,7],[96,9,96,10],[97,6,97,7],[97,9,97,10],[100,17,100,18],[191,17,191,18],[143,6,143,7],[143,9,143,10],[146,17,146,18],[187,6,187,7],[187,9,187,10],[188,6,188,7],[188,9,188,10]]}
[]
[null,null,null,null,null,null,"Estadística General",null,null,"Total",null,"Hombres ","Mujeres",null,"Menú Interno"]
[null,null,null,null,null,null,null,null,null,{"$f":"SUM(K3:M3)","v":0},null,{"$f":"COUNTIF(K5:K230,\"H\")","v":0},{"$f":"COUNTIF(K5:K230,\"M\")","v":0},null,"Cuarto - B"]
[null,null,null,null,null,null,null,null,null,null,null,null,null,null,"Cuarto - C"]
[null,null,null,null,null,null,null,null,null,null,null,null,null,null,"Cuarto - D"]
[null,null,null,null,null,null,"Nivel",null,null,"Total",null,"Hombres ","Mujeres",null,"Cuarto - E"]
[null,null,null,null,null,null,"Cuarto Grado - A",null,null,{"$f":"SUM(K7:M7)","v":0},null,{"$f":"COUNTIF(K9:K48,\"H\")","v":0},{"$f":"COUNTIF(K9:K48,\"M\")","v":0}]
[null,null,null,"N°","Cédula","I Apellido","II Apellido","Nombre","Fecha Nac","Edad","Sexo","Nacionalidad","Fecha Matrícula","Fecha Salida","Motivo Salida"]
[null,null,null,1,null,null,null,null,null,{"$f":"IF(I9=\"\",\"\",DATEDIF(I9,TODAY(),\"Y\"))","v":""}]
[null,null,null,2,null,null,null,null,null,"",null,null,null,null,null,null,"Docente:"]
[null,null,null,3,null,null,null,null,null,"",null,null,null,null,null,null,"Grupo Prof.:"]
[null,null,null,4,null,null,null,null,null,"",null,null,null,null,null,null,"Cédula:"]
[null,null,null,5,null,null,null,null,null,"",null,null,null,null,null,null,"Traslado"]
[null,null,null,6,null,null,null,null,null,"",null,null,null,null,null,null,"Deserción"]
[null,null,null,7,null,null,null,null,null,""]
[null,null,null,8,null,null,null,null,null,""]
[null,null,null,9,null,null,null,null,null,"",null,null,null,null,null,null,"H"]
[null,null,null,10,null,null,null,null,null,"",null,null,null,null,null,null,"M"]
[null,null,null,11,null,null,null,null,null,{"$f":"IF(I19=\"\",\"\",DATEDIF(I19,TODAY(),\"Y\"))","v":""}]
[null,null,null,12,null,null,null,null,null,"",null,null,null,null,null,null,"Costarricense"]
[null,null,null,13,null,null,null,null,null,"",null,null,null,null,null,null,"Extranjero"]
[null,null,null,14,null,null,null,null,null,""]
[null,null,null,15,null,null,null,null,null,""]
[null,null,null,16,null,null,null,null,null,""]
[null,null,null,17,null,null,null,null,null,""]
[null,null,null,18,null,null,null,null,null,""]
[null,null,null,19,null,null,null,null,null,""]
[null,null,null,20,null,null,null,null,null,""]
[null,null,null,21,null,null,null,null,null,""]
[null,null,null,22,null,null,null,null,null,""]
[null,null,null,23,null,null,null,null,null,""]
[null,null,null,24,null,null,null,null,null,""]
[null,null,null,25,null,null,null,null,null,""]
[null,null,null,26,null,null,null,null,null,""]
[null,null,null,27,null,null,null,null,null,""]
[null,null,null,28,null,null,null,null,null,""]
[null,null,null,29,null,null,null,null,null,""]
[null,null,null,30,null,null,null,null,null,""]
[null,null,null,31,null,null,null,null,null,""]
[null,null,null,32,null,null,null,null,null,""]
[null,null,null,33,null,null,null,null,null,""]
[null,null,null,34,null,null,null,null,null,""]
[null,null,null,35,null,null,null,null,null,""]
[null,null,null,36,null,null,null,null,null,""]
[null,null,null,37,null,null,null,null,null,""]
[null,null,null,38,null,null,null,null,null,""]
[null,null,null,39,null,null,null,null,null,""]
[null,null,null,40,null,null,null,null,null,""]
[]
[]
[]
[null,null,null,null,null,null,"Nivel",null,null,"Total",null,"Hombres ","Mujeres"]
[null,null,null,null,null,null,"Cuarto Grado - B",null,null,{"$f":"SUM(K53:M53)","v":0},null,{"$f":"COUNTIF(K55:K94,\"H\")","v":0},{"$f":"COUNTIF(K55:K94,\"M\")","v":0}]
[null,null,null,"N°","Cédula","I Apellido","II Apellido","Nombre","Fecha Nac","Edad","Sexo","Nacionalidad","Fecha Matrícula","Fecha Salida","Motivo Salida"]
[null,null,null,1,null,null,null,null,null,{"$f":"IF(I55=\"\",\"\",DATEDIF(I55,TODAY(),\"Y\"))","v":""}]
[null,null,null,2,null,null,null,null,null,"",null,null,null,null,null,null,"Docente:"]
[null,null,null,3,null,null,null,null,null,"",null,null,null,null,null,null,"Grupo Prof.:"]
[null,null,null,4,null,null,null,null,null,"",null,null,null,null,null,null,"Cédula:"]
[null,null,null,5,null,null,null,null,null,""]
[null,null,null,6,null,null,null,null,null,""]
[null,null,null,7,null,null,null,null,null,""]
[null,null,null,8,null,null,null,null,null,""]
[null,null,null,9,null,null,null,null,null,""]
[null,null,null,10,null,null,null,null,null,""]
[null,null,null,11,null,null,null,null,null,""]
[null,null,null,12,null,null,null,null,null,{"$f":"IF(I66=\"\",\"\",DATEDIF(I66,TODAY(),\"Y\"))","v":""}]
[null,null,null,13,null,null,null,null,null,""]
[null,null,null,14,null,null,null,null,null,""]
[null,null,null,15,null,null,null,null,null,""]
[null,null,null,16,null,null,null,null,null,""]
[null,null,null,17,null,null,null,null,null,""]
[null,null,null,18,null,null,null,null,null,""]
[null,null,null,19,null,null,null,null,null,""]
[null,null,null,20,null,null,null,null,null,""]
[null,null,null,21,null,null,null,null,null,""]
[null,null,null,22,null,null,null,null,null,""]
[null,null,null,23,null,null,null,null,null,""]
[null,null,null,24,null,null,null,null,null,""]
[null,null,null,25,null,null,null,null,null,""]
[null,null,null,26,null,null,null,null,null,""]
[null,null,null,27,null,null,null,null,null,""]
[null,null,null,28,null,null,null,null,null,""]
[null,null,null,29,null,null,null,null,null,""]
[null,null,null,30,null,null,null,null,null,""]
[null,null,null,31,null,null,null,null,null,""]
[null,null,null,32,null,null,null,null,null,""]
[null,null,null,33,null,null,null,null,null,""]
[null,null,null,34,null,null,null,null,null,""]
[null,null,null,35,null,null,null,null,null,""]
[null,null,null,36,null,null,null,null,null,""]
[null,null,null,37,null,null,null,null,null,""]
[null,null,null,38,null,null,null,null,null,""]
[null,null,null,39,null,null,null,null,null,""]
[null,null,null,40,null,null,null,null,null,""]
[]
[]
[null,null,null,null,null,null,"Nivel",null,null,"Total",null,"Hombres ","Mujeres"]
[null,null,null,null,null,null,"Cuarto Grado - C",null,null,{"$f":"SUM(K98:M98)","v":0},null,{"$f":"COUNTIF(K100:K139,\"H\")","v":0},{"$f":"COUNTIF(K100:K139,\"M\")","v":0}]
[null,null,null,"N°","Cédula","I Apellido","II Apellido","Nombre","Fecha Nac","Edad","Sexo","Nacionalidad","Fecha Matrícula","Fecha Salida","Motivo Salida"]
[null,null,null,1,null,null,null,null,null,{"$f":"IF(I100=\"\",\"\",DATEDIF(I100,TODAY(),\"Y\"))","v":""}]
[null,null,null,2,null,null,null,null,null,"",null,null,null,null,null,null,"Docente:"]
[null,null,null,3,null,null,null,null,null,"",null,null,null,null,null,null,"Grupo Prof.:"]
[null,null,null,4,null,null,null,null,null,"",null,null,null,null,null,null,"Cédula:"]
[null,null,null,5,null,null,null,null,null,""]
[null,null,null,6,null,null,null,null,null,""]
[null,null,null,7,null,null,null,null,null,""]
[null,null,null,8,null,null,null,null,null,""]
[null,null,null,9,null,null,null,null,null,""]
[null,null,null,10,null,null,null,null,null,{"$f":"IF(I109=\"\",\"\",DATEDIF(I109,TODAY(),\"Y\"))","v":""}]
[null,null,null,11,null,null,null,null,null,""]
[null,null,null,12,null,null,null,null,null,""]
[null,null,null,13,null,null,null,null,null,""]
[null,null,null,14,null,null,null,null,null,""]
[null,null,null,15,null,null,null,null,null,""]
[null,null,null,16,null,null,null,null,null,""]
[null,null,null,17,null,null,null,null,null,""]
[null,null,null,18,null,null,null,null,null,""]
[null,null,null,19,null,null,null,null,null,""]
[null,null,null,20,null,null,null,null,null,""]
[null,null,null,21,null,null,null,null,null,""]
[null,null,null,22,null,null,null,null,null,""]
[null,null,null,23,null,null,null,null,null,""]
[null,null,null,24,null,null,null,null,null,""]
[null,null,null,25,null,null,null,null,null,""]
[null,null,null,26,null,null,null,null,null,""]
[null,null,null,27,null,null,null,null,null,""]
[null,null,null,28,null,null,null,null,null,""]
[null,null,null,29,null,null,null,null,null,""]
[null,null,null,30,null,null,null,null,null,""]
[null,null,null,31,null,null,null,null,null,""]
[null,null,null,32,null,null,null,null,null,""]
[null,null,null,33,null,null,null,null,null,""]
[null,null,null,34,null,null,null,null,null,""]
[null,null,null,35,null,null,null,null,null,""]
[null,null,null,36,null,null,null,null,null,""]
[null,null,null,37,null,null,null,null,null,""]
[null,null,null,38,null,null,null,null,null,""]
[null,null,null,39,null,null,null,null,null,""]
[null,null,null,40,null,null,null,null,null,""]
[]
[]
[]
[null,null,null,null,null,null,"Nivel",null,null,"Total",null,"Hombres ","Mujeres"]
[null,null,null,null,null,null,"Cuarto Grado - D",null,null,{"$f":"SUM(K144:M144)","v":0},null,{"$f":"COUNTIF(K146:K185,\"H\")","v":0},{"$f":"COUNTIF(K146:K185,\"M\")","v":0}]
[null,null,null,"N°","Cédula","I Apellido","II Apellido","Nombre","Fecha Nac","Edad","Sexo","Nacionalidad","Fecha Matrícula","Fecha Salida","Motivo Salida"]
[null,null,null,1,null,null,null,null,null,{"$f":"IF(I146=\"\",\"\",DATEDIF(I146,TODAY(),\"Y\"))","v":""}]
[null,null,null,2,null,null,null,null,null,"",null,null,null,null,null,null,"Docente:"]
[null,null,null,3,null,null,null,null,null,"",null,null,null,null,null,null,"Grupo Prof.:"]
[null,null,null,4,null,null,null,null,null,"",null,null,null,null,null,null,"Cédula:"]
[null,null,null,5,null,null,null,null,null,""]
[null,null,null,6,null,null,null,null,null,""]
[null,null,null,7,null,null,null,null,null,""]
[null,null,null,8,null,null,null,null,null,""]
[null,null,null,9,null,null,null,null,null,""]
[null,null,null,10,null,null,null,null,null,""]
[null,null,null,11,null,null,null,null,null,{"$f":"IF(I156=\"\",\"\",DATEDIF(I156,TODAY(),\"Y\"))","v":""}]
[null,null,null,12,null,null,null,null,null,""]
[null,null,null,13,null,null,null,null,null,""]
[null,null,null,14,null,null,null,null,null,""]
[null,null,null,15,null,null,null,null,null,""]
[null,null,null,16,null,null,null,null,null,""]
[null,null,null,17,null,null,null,null,null,""]
[null,null,null,18,null,null,null,null,null,""]
[null,null,null,19,null,null,null,null,null,""]
[null,null,null,20,null,null,null,null,null,""]
[null,null,null,21,null,null,null,null,null,""]
[null,null,null,22,null,null,null,null,null,""]
[null,null,null,23,null,null,null,null,null,""]
[null,null,null,24,null,null,null,null,null,""]
[null,null,null,25,null,null,null,null,null,""]
[null,null,null,26,null,null,null,null,null,""]
[null,null,null,27,null,null,null,null,null,""]
[null,null,null,28,null,null,null,null,null,""]
[null,null,null,29,null,null,null,null,null,""]
[null,null,null,30,null,null,null,null,null,""]
[null,null,null,31,null,null,null,null,null,""]
[null,null,null,32,null,null,null,null,null,""]
[null,null,null,33,null,null,null,null,null,""]
[null,null,null,34,null,null,null,null,null,""]
[null,null,null,35,null,null,null,null,null,""]
[null,null,null,36,null,null,null,null,null,""]
[null,null,null,37,null,null,null,null,null,""]
[null,null,null,38,null,null,null,null,null,""]
[null,null,null,39,null,null,null,null,null,""]
[null,null,null,40,null,null,null,null,null,""]
[]
[]
[null,null,null,null,null,null,"Nivel",null,null,"Total",null,"Hombres ","Mujeres"]
[null,null,null,null,null,null,"Cuarto Grado - E",null,null,{"$f":"SUM(K189:M189)","v":0},null,{"$f":"COUNTIF(K191:K230,\"H\")","v":0},{"$f":"COUNTIF(K191:K230,\"M\")","v":0}]
[null,null,null,"N°","Cédula","I Apellido","II Apellido","Nombre","Fecha Nac","Edad","Sexo","Nacionalidad","Fecha Matrícula","Fecha Salida","Motivo Salida"]
[null,null,null,1,null,null,null,null,null,{"$f":"IF(I191=\"\",\"\",DATEDIF(I191,TODAY(),\"Y\"))","v":""}]
[null,null,null,2,null,null,null,null,null,"",null,null,null,null,null,null,"Docente:"]
[null,null,null,3,null,null,null,null,null,"",null,null,null,null,null,null,"Grupo Prof.:"]
[null,null,null,4,null,null,null,null,null,"",null,null,null,null,null,null,"Cédula:"]
[null,null,null,5,null,null,null,null,null,""]
[null,null,null,6,null,null,null,null,null,""]
[null,null,null,7,null,null,null,null,null,""]
[null,null,null,8,null,null,null,null,null,""]
[null,null,null,9,null,null,null,null,null,""]
[null,null,null,10,null,null,null,null,null,""]
[null,null,null,11,null,null,null,null,null,""]
[null,null,null,12,null,null,null,null,null,{"$f":"IF(I202=\"\",\"\",DATEDIF(I202,TODAY(),\"Y\"))","v":""}]
[null,null,null,13,null,null,null,null,null,""]
[null,null,null,14,null,null,null,null,null,""]
[null,null,null,15,null,null,null,null,null,""]
[null,null,null,16,null,null,null,null,null,""]
[null,null,null,17,null,null,null,null,null,""]
[null,null,null,18,null,null,null,null,null,""]
[null,null,null,19,null,null,null,null,null,""]
[null,null,null,20,null,null,null,null,null,""]
[null,null,null,21,null,null,null,null,null,""]
[null,null,null,22,null,null,null,null,null,""]
[null,null,null,23,null,null,null,null,null,""]
[null,null,null,24,null,null,null,null,null,""]
[null,null,null,25,null,null,null,null,null,""]
[null,null,null,26,null,null,null,null,null,""]
[null,null,null,27,null,null,null,null,null,""]
[null,null,null,28,null,null,null,null,null,""]
[null,null,null,29,null,null,null,null,null,""]
[null,null,null,30,null,null,null,null,null,""]
[null,null,null,31,null,null,null,null,null,""]
[null,null,null,32,null,null,null,null,null,""]
[null,null,null,33,null,null,null,null,null,""]
[null,null,null,34,null,null,null,null,null,""]
[null,null,null,35,null,null,null,null,null,""]
[null,null,null,36,null,null,null,null,null,""]
[null,null,null,37,null,null,null,null,null,""]
[null,null,null,38,null,null,null,null,null,""]
[null,null,null,39,null,null,null,null,null,""]
[null,null,null,40,null,null,null,null,null,""]

{"sheet":"Quinto","index":7,"n_rows":230,"n_cols":17,"rows_kept":230,"cut":false,"hidden":false,"merged":[[6,6,6,7],[6,9,6,10],[1,6,2,8],[1,9,1,10],[2,9,2,10],[5,6,5,7],[5,9,5,10],[142,6,142,7],[142,9,142,10],[9,17,9,18],[51,6,51,7],[51,9,51,10],[52,6,52,7],[52,9,52,10],[55,17,55,18],[96,6,96,7],[96,9,96,10],[97,6,97,7],[97,9,97,10],[100,17,100,18],[191,17,191,18],[143,6,143,7],[143,9,143,10],[146,17,146,18],[187,6,187,7],[187,9,187,10],[188,6,188,7],[188,9,188,10]]}
[]
[null,null,null,null,null,null,"Estadística General",null,null,"Total",null,"Hombres ","Mujeres",null,"Menú Interno"]
[null,null,null,null,null,null,null,null,null,{"$f":"SUM(K3:M3)","v":0},null,{"$f":"COUNTIF(K5:K230,\"H\")","v":0},{"$f":"COUNTIF(K5:K230,\"M\")","v":0},null,"Quinto - B"]
[null,null,null,null,null,null,null,null,null,null,null,null,null,null,"Quinto - C"]
[null,null,null,null,null,null,null,null,null,null,null,null,null,null,"Quinto - D"]
[null,null,null,null,null,null,"Nivel",null,null,"Total",null,"Hombres ","Mujeres",null,"Quinto - E"]
[null,null,null,null,null,null,"Quinto Grado - A",null,null,{"$f":"SUM(K7:M7)","v":0},null,{"$f":"COUNTIF(K9:K48,\"H\")","v":0},{"$f":"COUNTIF(K9:K48,\"M\")","v":0}]
[null,null,null,"N°","Cédula","I Apellido","II Apellido","Nombre","Fecha Nac","Edad","Sexo","Nacionalidad","Fecha Matrícula","Fecha Salida","Motivo Salida"]
[null,null,null,1,null,null,null,null,null,{"$f":"IF(I9=\"\",\"\",DATEDIF(I9,TODAY(),\"Y\"))","v":""}]
[null,null,null,2,null,null,null,null,null,"",null,null,null,null,null,null,"Docente:"]
[null,null,null,3,null,null,null,null,null,"",null,null,null,null,null,null,"Grupo Prof.:"]
[null,null,null,4,null,null,null,null,null,"",null,null,null,null,null,null,"Cédula:"]
[null,null,null,5,null,null,null,null,null,"",null,null,null,null,null,null,"Traslado"]
[null,null,null,6,null,null,null,null,null,"",null,null,null,null,null,null,"Deserción"]
[null,null,null,7,null,null,null,null,null,""]
[null,null,null,8,null,null,null,null,null,""]
[null,null,null,9,null,null,null,null,null,"",null,null,null,null,null,null,"H"]
[null,null,null,10,null,null,null,null,null,"",null,null,null,null,null,null,"M"]
[null,null,null,11,null,null,null,null,null,{"$f":"IF(I19=\"\",\"\",DATEDIF(I19,TODAY(),\"Y\"))","v":""}]
[null,null,null,12,null,null,null,null,null,"",null,null,null,null,null,null,"Costarricense"]
[null,null,null,13,null,null,null,null,null,"",null,null,null,null,null,null,"Extranjero"]
[null,null,null,14,null,null,null,null,null,""]
[null,null,null,15,null,null,null,null,null,""]
[null,null,null,16,null,null,null,null,null,""]
[null,null,null,17,null,null,null,null,null,""]
[null,null,null,18,null,null,null,null,null,""]
[null,null,null,19,null,null,null,null,null,""]
[null,null,null,20,null,null,null,null,null,""]
[null,null,null,21,null,null,null,null,null,""]
[null,null,null,22,null,null,null,null,null,""]
[null,null,null,23,null,null,null,null,null,""]
[null,null,null,24,null,null,null,null,null,""]
[null,null,null,25,null,null,null,null,null,""]
[null,null,null,26,null,null,null,null,null,""]
[null,null,null,27,null,null,null,null,null,""]
[null,null,null,28,null,null,null,null,null,""]
[null,null,null,29,null,null,null,null,null,""]
[null,null,null,30,null,null,null,null,null,""]
[null,null,null,31,null,null,null,null,null,""]
[null,null,null,32,null,null,null,null,null,""]
[null,null,null,33,null,null,null,null,null,""]
[null,null,null,34,null,null,null,null,null,""]
[null,null,null,35,null,null,null,null,null,""]
[null,null,null,36,null,null,null,null,null,""]
[null,null,null,37,null,null,null,null,null,""]
[null,null,null,38,null,null,null,null,null,""]
[null,null,null,39,null,null,null,null,null,""]
[null,null,null,40,null,null,null,null,null,""]
[]
[]
[]
[null,null,null,null,null,null,"Nivel",null,null,"Total",null,"Hombres ","Mujeres"]
[null,null,null,null,null,null,"Quinto Grado - B",null,null,{"$f":"SUM(K53:M53)","v":0},null,{"$f":"COUNTIF(K55:K94,\"H\")","v":0},{"$f":"COUNTIF(K55:K94,\"M\")","v":0}]
[null,null,null,"N°","Cédula","I Apellido","II Apellido","Nombre","Fecha Nac","Edad","Sexo","Nacionalidad","Fecha Matrícula","Fecha Salida","Motivo Salida"]
[null,null,null,1,null,null,null,null,null,{"$f":"IF(I55=\"\",\"\",DATEDIF(I55,TODAY(),\"Y\"))","v":""}]
[null,null,null,2,null,null,null,null,null,"",null,null,null,null,null,null,"Docente:"]
[null,null,null,3,null,null,null,null,null,"",null,null,null,null,null,null,"Grupo Prof.:"]
[null,null,null,4,null,null,null,null,null,"",null,null,null,null,null,null,"Cédula:"]
[null,null,null,5,null,null,null,null,null,""]
[null,null,null,6,null,null,null,null,null,""]
[null,null,null,7,null,null,null,null,null,""]
[null,null,null,8,null,null,null,null,null,""]
[null,null,null,9,null,null,null,null,null,""]
[null,null,null,10,null,null,null,null,null,""]
[null,null,null,11,null,null,null,null,null,{"$f":"IF(I65=\"\",\"\",DATEDIF(I65,TODAY(),\"Y\"))","v":""}]
[null,null,null,12,null,null,null,null,null,""]
[null,null,null,13,null,null,null,null,null,""]
[null,null,null,14,null,null,null,null,null,""]
[null,null,null,15,null,null,null,null,null,""]
[null,null,null,16,null,null,null,null,null,""]
[null,null,null,17,null,null,null,null,null,""]
[null,null,null,18,null,null,null,null,null,""]
[null,null,null,19,null,null,null,null,null,""]
[null,null,null,20,null,null,null,null,null,""]
[null,null,null,21,null,null,null,null,null,""]
[null,null,null,22,null,null,null,null,null,""]
[null,null,null,23,null,null,null,null,null,""]
[null,null,null,24,null,null,null,null,null,""]
[null,null,null,25,null,null,null,null,null,""]
[null,null,null,26,null,null,null,null,null,""]
[null,null,null,27,null,null,null,null,null,""]
[null,null,null,28,null,null,null,null,null,""]
[null,null,null,29,null,null,null,null,null,""]
[null,null,null,30,null,null,null,null,null,""]
[null,null,null,31,null,null,null,null,null,""]
[null,null,null,32,null,null,null,null,null,""]
[null,null,null,33,null,null,null,null,null,""]
[null,null,null,34,null,null,null,null,null,""]
[null,null,null,35,null,null,null,null,null,""]
[null,null,null,36,null,null,null,null,null,""]
[null,null,null,37,null,null,null,null,null,""]
[null,null,null,38,null,null,null,null,null,""]
[null,null,null,39,null,null,null,null,null,""]
[null,null,null,40,null,null,null,null,null,""]
[]
[]
[null,null,null,null,null,null,"Nivel",null,null,"Total",null,"Hombres ","Mujeres"]
[null,null,null,null,null,null,"Quinto Grado - C",null,null,{"$f":"SUM(K98:M98)","v":0},null,{"$f":"COUNTIF(K100:K139,\"H\")","v":0},{"$f":"COUNTIF(K100:K139,\"M\")","v":0}]
[null,null,null,"N°","Cédula","I Apellido","II Apellido","Nombre","Fecha Nac","Edad","Sexo","Nacionalidad","Fecha Matrícula","Fecha Salida","Motivo Salida"]
[null,null,null,1,null,null,null,null,null,{"$f":"IF(I100=\"\",\"\",DATEDIF(I100,TODAY(),\"Y\"))","v":""}]
[null,null,null,2,null,null,null,null,null,"",null,null,null,null,null,null,"Docente:"]
[null,null,null,3,null,null,null,null,null,"",null,null,null,null,null,null,"Grupo Prof.:"]
[null,null,null,4,null,null,null,null,null,"",null,null,null,null,null,null,"Cédula:"]
[null,null,null,5,null,null,null,null,null,""]
[null,null,null,6,null,null,null,null,null,""]
[null,null,null,7,null,null,null,null,null,""]
[null,null,null,8,null,null,null,null,null,""]
[null,null,null,9,null,null,null,null,null,""]
[null,null,null,10,null,null,null,null,null,""]
[null,null,null,11,null,null,null,null,null,{"$f":"IF(I110=\"\",\"\",DATEDIF(I110,TODAY(),\"Y\"))","v":""}]
[null,null,null,12,null,null,null,null,null,""]
[null,null,null,13,null,null,null,null,null,""]
[null,null,null,14,null,null,null,null,null,""]
[null,null,null,15,null,null,null,null,null,""]
[null,null,null,16,null,null,null,null,null,""]
[null,null,null,17,null,null,null,null,null,""]
[null,null,null,18,null,null,null,null,null,""]
[null,null,null,19,null,null,null,null,null,""]
[null,null,null,20,null,null,null,null,null,""]
[null,null,null,21,null,null,null,null,null,""]
[null,null,null,22,null,null,null,null,null,""]
[null,null,null,23,null,null,null,null,null,""]
[null,null,null,24,null,null,null,null,null,""]
[null,null,null,25,null,null,null,null,null,""]
[null,null,null,26,null,null,null,null,null,""]
[null,null,null,27,null,null,null,null,null,""]
[null,null,null,28,null,null,null,null,null,""]
[null,null,null,29,null,null,null,null,null,""]
[null,null,null,30,null,null,null,null,null,""]
[null,null,null,31,null,null,null,null,null,""]
[null,null,null,32,null,null,null,null,null,""]
[null,null,null,33,null,null,null,null,null,""]
[null,null,null,34,null,null,null,null,null,""]
[null,null,null,35,null,null,null,null,null,""]
[null,null,null,36,null,null,null,null,null,""]
[null,null,null,37,null,null,null,null,null,""]
[null,null,null,38,null,null,null,null,null,""]
[null,null,null,39,null,null,null,null,null,""]
[null,null,null,40,null,null,null,null,null,""]
[]
[]
[]
[null,null,null,null,null,null,"Nivel",null,null,"Total",null,"Hombres ","Mujeres"]
[null,null,null,null,null,null,"Quinto Grado - D",null,null,{"$f":"SUM(K144:M144)","v":0},null,{"$f":"COUNTIF(K146:K185,\"H\")","v":0},{"$f":"COUNTIF(K146:K185,\"M\")","v":0}]
[null,null,null,"N°","Cédula","I Apellido","II Apellido","Nombre","Fecha Nac","Edad","Sexo","Nacionalidad","Fecha Matrícula","Fecha Salida","Motivo Salida"]
[null,null,null,1,null,null,null,null,null,{"$f":"IF(I146=\"\",\"\",DATEDIF(I146,TODAY(),\"Y\"))","v":""}]
[null,null,null,2,null,null,null,null,null,"",null,null,null,null,null,null,"Docente:"]
[null,null,null,3,null,null,null,null,null,"",null,null,null,null,null,null,"Grupo Prof.:"]
[null,null,null,4,null,null,null,null,null,"",null,null,null,null,null,null,"Cédula:"]
[null,null,null,5,null,null,null,null,null,""]
[null,null,null,6,null,null,null,null,null,""]
[null,null,null,7,null,null,null,null,null,""]
[null,null,null,8,null,null,null,null,null,""]
[null,null,null,9,null,null,null,null,null,""]
[null,null,null,10,null,null,null,null,null,""]
[null,null,null,11,null,null,null,null,null,""]
[null,null,null,12,null,null,null,null,null,""]
[null,null,null,13,null,null,null,null,null,""]
[null,null,null,14,null,null,null,null,null,{"$f":"IF(I159=\"\",\"\",DATEDIF(I159,TODAY(),\"Y\"))","v":""}]
[null,null,null,15,null,null,null,null,null,""]
[null,null,null,16,null,null,null,null,null,""]
[null,null,null,17,null,null,null,null,null,""]
[null,null,null,18,null,null,null,null,null,""]
[null,null,null,19,null,null,null,null,null,""]
[null,null,null,20,null,null,null,null,null,""]
[null,null,null,21,null,null,null,null,null,""]
[null,null,null,22,null,null,null,null,null,""]
[null,null,null,23,null,null,null,null,null,""]
[null,null,null,24,null,null,null,null,null,""]
[null,null,null,25,null,null,null,null,null,""]
[null,null,null,26,null,null,null,null,null,""]
[null,null,null,27,null,null,null,null,null,""]
[null,null,null,28,null,null,null,null,null,""]
[null,null,null,29,null,null,null,null,null,""]
[null,null,null,30,null,null,null,null,null,""]
[null,null,null,31,null,null,null,null,null,""]
[null,null,null,32,null,null,null,null,null,""]
[null,null,null,33,null,null,null,null,null,""]
[null,null,null,34,null,null,null,null,null,""]
[null,null,null,35,null,null,null,null,null,""]
[null,null,null,36,null,null,null,null,null,""]
[null,null,null,37,null,null,null,null,null,""]
[null,null,null,38,null,null,null,null,null,""]
[null,null,null,39,null,null,null,null,null,""]
[null,null,null,40,null,null,null,null,null,""]
[]
[]
[null,null,null,null,null,null,"Nivel",null,null,"Total",null,"Hombres ","Mujeres"]
[null,null,null,null,null,null,"Quinto Grado - E",null,null,{"$f":"SUM(K189:M189)","v":0},null,{"$f":"COUNTIF(K191:K230,\"H\")","v":0},{"$f":"COUNTIF(K191:K230,\"M\")","v":0}]
[null,null,null,"N°","Cédula","I Apellido","II Apellido","Nombre","Fecha Nac","Edad","Sexo","Nacionalidad","Fecha Matrícula","Fecha Salida","Motivo Salida"]
[null,null,null,1,null,null,null,null,null,{"$f":"IF(I191=\"\",\"\",DATEDIF(I191,TODAY(),\"Y\"))","v":""}]
[null,null,null,2,null,null,null,null,null,"",null,null,null,null,null,null,"Docente:"]
[null,null,null,3,null,null,null,null,null,"",null,null,null,null,null,null,"Grupo Prof.:"]
[null,null,null,4,null,null,null,null,null,"",null,null,null,null,null,null,"Cédula:"]
[null,null,null,5,null,null,null,null,null,""]
[null,null,null,6,null,null,null,null,null,""]
[null,null,null,7,null,null,null,null,null,""]
[null,null,null,8,null,null,null,null,null,""]
[null,null,null,9,null,null,null,null,null,""]
[null,null,null,10,null,null,null,null,null,""]
[null,null,null,11,null,null,null,null,null,""]
[null,null,null,12,null,null,null,null,null,""]
[null,null,null,13,null,null,null,null,null,""]
[null,null,null,14,null,null,null,null,null,""]
[null,null,null,15,null,null,null,null,null,{"$f":"IF(I205=\"\",\"\",DATEDIF(I205,TODAY(),\"Y\"))","v":""}]
[null,null,null,16,null,null,null,null,null,""]
[null,null,null,17,null,null,null,null,null,""]
[null,null,null,18,null,null,null,null,null,""]
[null,null,null,19,null,null,null,null,null,""]
[null,null,null,20,null,null,null,null,null,""]
[null,null,null,21,null,null,null,null,null,""]
[null,null,null,22,null,null,null,null,null,""]
[null,null,null,23,null,null,null,null,null,""]
[null,null,null,24,null,null,null,null,null,""]
[null,null,null,25,null,null,null,null,null,""]
[null,null,null,26,null,null,null,null,null,""]
[null,null,null,27,null,null,null,null,null,""]
[null,null,null,28,null,null,null,null,null,""]
[null,null,null,29,null,null,null,null,null,""]
[null,null,null,30,null,null,null,null,null,""]
[null,null,null,31,null,null,null,null,null,""]
[null,null,null,32,null,null,null,null,null,""]
[null,null,null,33,null,null,null,null,null,""]
[null,null,null,34,null,null,null,null,null,""]
[null,null,null,35,null,null,null,null,null,""]
[null,null,null,36,null,null,null,null,null,""]
[null,null,null,37,null,null,null,null,null,""]
[null,null,null,38,null,null,null,null,null,""]
[null,null,null,39,null,null,null,null,null,""]
[null,null,null,40,null,null,null,null,null,""]

{"sheet":"Sexto","index":8,"n_rows":230,"n_cols":17,"rows_kept":230,"cut":false,"hidden":false,"merged":[[6,6,6,7],[6,9,6,10],[1,6,2,8],[1,9,1,10],[2,9,2,10],[5,6,5,7],[5,9,5,10],[142,6,142,7],[142,9,142,10],[9,17,9,18],[51,6,51,7],[51,9,51,10],[52,6,52,7],[52,9,52,10],[55,17,55,18],[96,6,96,7],[96,9,96,10],[97,6,97,7],[97,9,97,10],[100,17,100,18],[191,17,191,18],[143,6,143,7],[143,9,143,10],[146,17,146,18],[187,6,187,7],[187,9,187,10],[188,6,188,7],[188,9,188,10]]}
[]
[null,null,null,null,null,null,"Estadística General",null,null,"Total",null,"Hombres ","Mujeres",null,"Menú Interno"]
[null,null,null,null,null,null,null,null,null,{"$f":"SUM(K3:M3)","v":0},null,{"$f":"COUNTIF(K5:K230,\"H\")","v":0},{"$f":"COUNTIF(K5:K230,\"M\")","v":0},null,"Sexto - B"]
[null,null,null,null,null,null,null,null,null,null,null,null,null,null,"Sexto - C"]
[null,null,null,null,null,null,null,null,null,null,null,null,null,null,"Sexto - D"]
[null,null,null,null,null,null,"Nivel",null,null,"Total",null,"Hombres ","Mujeres",null,"Sexto - E"]
[null,null,null,null,null,null,"Sexto Grado - A",null,null,{"$f":"SUM(K7:M7)","v":0},null,{"$f":"COUNTIF(K9:K48,\"H\")","v":0},{"$f":"COUNTIF(K9:K48,\"M\")","v":0}]
[null,null,null,"N°","Cédula","I Apellido","II Apellido","Nombre","Fecha Nac","Edad","Sexo","Nacionalidad","Fecha Matrícula","Fecha Salida","Motivo Salida"]
[null,null,null,1,null,null,null,null,null,{"$f":"IF(I9=\"\",\"\",DATEDIF(I9,TODAY(),\"Y\"))","v":""}]
[null,null,null,2,null,null,null,null,null,"",null,null,null,null,null,null,"Docente:"]
[null,null,null,3,null,null,null,null,null,"",null,null,null,null,null,null,"Grupo Prof.:"]
[null,null,null,4,null,null,null,null,null,"",null,null,null,null,null,null,"Cédula:"]
[null,null,null,5,null,null,null,null,null,"",null,null,null,null,null,null,"Traslado"]
[null,null,null,6,null,null,null,null,null,"",null,null,null,null,null,null,"Deserción"]
[null,null,null,7,null,null,null,null,null,""]
[null,null,null,8,null,null,null,null,null,""]
[null,null,null,9,null,null,null,null,null,"",null,null,null,null,null,null,"H"]
[null,null,null,10,null,null,null,null,null,"",null,null,null,null,null,null,"M"]
[null,null,null,11,null,null,null,null,null,""]
[null,null,null,12,null,null,null,null,null,{"$f":"IF(I20=\"\",\"\",DATEDIF(I20,TODAY(),\"Y\"))","v":""},null,null,null,null,null,null,"Costarricense"]
[null,null,null,13,null,null,null,null,null,"",null,null,null,null,null,null,"Extranjero"]
[null,null,null,14,null,null,null,null,null,""]
[null,null,null,15,null,null,null,null,null,""]
[null,null,null,16,null,null,null,null,null,""]
[null,null,null,17,null,null,null,null,null,""]
[null,null,null,18,null,null,null,null,null,""]
[null,null,null,19,null,null,null,null,null,""]
[null,null,null,20,null,null,null,null,null,""]
[null,null,null,21,null,null,null,null,null,""]
[null,null,null,22,null,null,null,null,null,""]
[null,null,null,23,null,null,null,null,null,""]
[null,null,null,24,null,null,null,null,null,""]
[null,null,null,25,null,null,null,null,null,""]
[null,null,null,26,null,null,null,null,null,""]
[null,null,null,27,null,null,null,null,null,""]
[null,null,null,28,null,null,null,null,null,""]
[null,null,null,29,null,null,null,null,null,""]
[null,null,null,30,null,null,null,null,null,""]
[null,null,null,31,null,null,null,null,null,""]
[null,null,null,32,null,null,null,null,null,""]
[null,null,null,33,null,null,null,null,null,""]
[null,null,null,34,null,null,null,null,null,""]
[null,null,null,35,null,null,null,null,null,""]
[null,null,null,36,null,null,null,null,null,""]
[null,null,null,37,null,null,null,null,null,""]
[null,null,null,38,null,null,null,null,null,""]
[null,null,null,39,null,null,null,null,null,""]
[null,null,null,40,null,null,null,null,null,""]
[]
[]
[]
[null,null,null,null,null,null,"Nivel",null,null,"Total",null,"Hombres ","Mujeres"]
[null,null,null,null,null,null,"Sexto Grado - B",null,null,{"$f":"SUM(K53:M53)","v":0},null,{"$f":"COUNTIF(K55:K94,\"H\")","v":0},{"$f":"COUNTIF(K55:K94,\"M\")","v":0}]
[null,null,null,"N°","Cédula","I Apellido","II Apellido","Nombre","Fecha Nac","Edad","Sexo","Nacionalidad","Fecha Matrícula","Fecha Salida","Motivo Salida"]
[null,null,null,1,null,null,null,null,null,{"$f":"IF(I55=\"\",\"\",DATEDIF(I55,TODAY(),\"Y\"))","v":""}]
[null,null,null,2,null,null,null,null,null,"",null,null,null,null,null,null,"Docente:"]
[null,null,null,3,null,null,null,null,null,"",null,null,null,null,null,null,"Grupo Prof.:"]
[null,null,null,4,null,null,null,null,null,"",null,null,null,null,null,null,"Cédula:"]
[null,null,null,5,null,null,null,null,null,""]
[null,null,null,6,null,null,null,null,null,""]
[null,null,null,7,null,null,null,null,null,""]
[null,null,null,8,null,null,null,null,null,""]
[null,null,null,9,null,null,null,null,null,""]
[null,null,null,10,null,null,null,null,null,{"$f":"IF(I64=\"\",\"\",DATEDIF(I64,TODAY(),\"Y\"))","v":""}]
[null,null,null,11,null,null,null,null,null,""]
[null,null,null,12,null,null,null,null,null,""]
[null,null,null,13,null,null,null,null,null,""]
[null,null,null,14,null,null,null,null,null,""]
[null,null,null,15,null,null,null,null,null,""]
[null,null,null,16,null,null,null,null,null,""]
[null,null,null,17,null,null,null,null,null,""]
[null,null,null,18,null,null,null,null,null,""]
[null,null,null,19,null,null,null,null,null,""]
[null,null,null,20,null,null,null,null,null,""]
[null,null,null,21,null,null,null,null,null,""]
[null,null,null,22,null,null,null,null,null,""]
[null,null,null,23,null,null,null,null,null,""]
[null,null,null,24,null,null,null,null,null,""]
[null,null,null,25,null,null,null,null,null,""]
[null,null,null,26,null,null,null,null,null,""]
[null,null,null,27,null,null,null,null,null,""]
[null,null,null,28,null,null,null,null,null,""]
[null,null,null,29,null,null,null,null,null,""]
[null,null,null,30,null,null,null,null,null,""]
[null,null,null,31,null,null,null,null,null,""]
[null,null,null,32,null,null,null,null,null,""]
[null,null,null,33,null,null,null,null,null,""]
[null,null,null,34,null,null,null,null,null,""]
[null,null,null,35,null,null,null,null,null,""]
[null,null,null,36,null,null,null,null,null,""]
[null,null,null,37,null,null,null,null,null,""]
[null,null,null,38,null,null,null,null,null,""]
[null,null,null,39,null,null,null,null,null,""]
[null,null,null,40,null,null,null,null,null,""]
[]
[]
[null,null,null,null,null,null,"Nivel",null,null,"Total",null,"Hombres ","Mujeres"]
[null,null,null,null,null,null,"Sexto Grado - C",null,null,{"$f":"SUM(K98:M98)","v":0},null,{"$f":"COUNTIF(K100:K139,\"H\")","v":0},{"$f":"COUNTIF(K100:K139,\"M\")","v":0}]
[null,null,null,"N°","Cédula","I Apellido","II Apellido","Nombre","Fecha Nac","Edad","Sexo","Nacionalidad","Fecha Matrícula","Fecha Salida","Motivo Salida"]
[null,null,null,1,null,null,null,null,null,{"$f":"IF(I100=\"\",\"\",DATEDIF(I100,TODAY(),\"Y\"))","v":""}]
[null,null,null,2,null,null,null,null,null,"",null,null,null,null,null,null,"Docente:"]
[null,null,null,3,null,null,null,null,null,"",null,null,null,null,null,null,"Grupo Prof.:"]
[null,null,null,4,null,null,null,null,null,"",null,null,null,null,null,null,"Cédula:"]
[null,null,null,5,null,null,null,null,null,""]
[null,null,null,6,null,null,null,null,null,""]
[null,null,null,7,null,null,null,null,null,""]
[null,null,null,8,null,null,null,null,null,""]
[null,null,null,9,null,null,null,null,null,""]
[null,null,null,10,null,null,null,null,null,""]
[null,null,null,11,null,null,null,null,null,""]
[null,null,null,12,null,null,null,null,null,""]
[null,null,null,13,null,null,null,null,null,{"$f":"IF(I112=\"\",\"\",DATEDIF(I112,TODAY(),\"Y\"))","v":""}]
[null,null,null,14,null,null,null,null,null,""]
[null,null,null,15,null,null,null,null,null,""]
[null,null,null,16,null,null,null,null,null,""]
[null,null,null,17,null,null,null,null,null,""]
[null,null,null,18,null,null,null,null,null,""]
[null,null,null,19,null,null,null,null,null,""]
[null,null,null,20,null,null,null,null,null,""]
[null,null,null,21,null,null,null,null,null,""]
[null,null,null,22,null,null,null,null,null,""]
[null,null,null,23,null,null,null,null,null,""]
[null,null,null,24,null,null,null,null,null,""]
[null,null,null,25,null,null,null,null,null,""]
[null,null,null,26,null,null,null,null,null,""]
[null,null,null,27,null,null,null,null,null,""]
[null,null,null,28,null,null,null,null,null,""]
[null,null,null,29,null,null,null,null,null,""]
[null,null,null,30,null,null,null,null,null,""]
[null,null,null,31,null,null,null,null,null,""]
[null,null,null,32,null,null,null,null,null,""]
[null,null,null,33,null,null,null,null,null,""]
[null,null,null,34,null,null,null,null,null,""]
[null,null,null,35,null,null,null,null,null,""]
[null,null,null,36,null,null,null,null,null,""]
[null,null,null,37,null,null,null,null,null,""]
[null,null,null,38,null,null,null,null,null,""]
[null,null,null,39,null,null,null,null,null,""]
[null,null,null,40,null,null,null,null,null,""]
[]
[]
[]
[null,null,null,null,null,null,"Nivel",null,null,"Total",null,"Hombres ","Mujeres"]
[null,null,null,null,null,null,"Sexto Grado - D",null,null,{"$f":"SUM(K144:M144)","v":0},null,{"$f":"COUNTIF(K146:K185,\"H\")","v":0},{"$f":"COUNTIF(K146:K185,\"M\")","v":0}]
[null,null,null,"N°","Cédula","I Apellido","II Apellido","Nombre","Fecha Nac","Edad","Sexo","Nacionalidad","Fecha Matrícula","Fecha Salida","Motivo Salida"]
[null,null,null,1,null,null,null,null,null,{"$f":"IF(I146=\"\",\"\",DATEDIF(I146,TODAY(),\"Y\"))","v":""}]
[null,null,null,2,null,null,null,null,null,"",null,null,null,null,null,null,"Docente:"]
[null,null,null,3,null,null,null,null,null,"",null,null,null,null,null,null,"Grupo Prof.:"]
[null,null,null,4,null,null,null,null,null,"",null,null,null,null,null,null,"Cédula:"]
[null,null,null,5,null,null,null,null,null,""]
[null,null,null,6,null,null,null,null,null,""]
[null,null,null,7,null,null,null,null,null,""]
[null,null,null,8,null,null,null,null,null,""]
[null,null,null,9,null,null,null,null,null,""]
[null,null,null,10,null,null,null,null,null,""]
[null,null,null,11,null,null,null,null,null,""]
[null,null,null,12,null,null,null,null,null,{"$f":"IF(I157=\"\",\"\",DATEDIF(I157,TODAY(),\"Y\"))","v":""}]
[null,null,null,13,null,null,null,null,null,""]
[null,null,null,14,null,null,null,null,null,""]
[null,null,null,15,null,null,null,null,null,""]
[null,null,null,16,null,null,null,null,null,""]
[null,null,null,17,null,null,null,null,null,""]
[null,null,null,18,null,null,null,null,null,""]
[null,null,null,19,null,null,null,null,null,""]
[null,null,null,20,null,null,null,null,null,""]
[null,null,null,21,null,null,null,null,null,""]
[null,null,null,22,null,null,null,null,null,""]
[null,null,null,23,null,null,null,null,null,""]
[null,null,null,24,null,null,null,null,null,""]
[null,null,null,25,null,null,null,null,null,""]
[null,null,null,26,null,null,null,null,null,""]
[null,null,null,27,null,null,null,null,null,""]
[null,null,null,28,null,null,null,null,null,""]
[null,null,null,29,null,null,null,null,null,""]
[null,null,null,30,null,null,null,null,null,""]
[null,null,null,31,null,null,null,null,null,""]
[null,null,null,32,null,null,null,null,null,""]
[null,null,null,33,null,null,null,null,null,""]
[null,null,null,34,null,null,null,null,null,""]
[null,null,null,35,null,null,null,null,null,""]
[null,null,null,36,null,null,null,null,null,""]
[null,null,null,37,null,null,null,null,null,""]
[null,null,null,38,null,null,null,null,null,""]
[null,null,null,39,null,null,null,null,null,""]
[null,null,null,40,null,null,null,null,null,""]
[]
[]
[null,null,null,null,null,null,"Nivel",null,null,"Total",null,"Hombres ","Mujeres"]
[null,null,null,null,null,null,"Sexto Grado - E",null,null,{"$f":"SUM(K189:M189)","v":0},null,{"$f":"COUNTIF(K191:K230,\"H\")","v":0},{"$f":"COUNTIF(K191:K230,\"M\")","v":0}]
[null,null,null,"N°","Cédula","I Apellido","II Apellido","Nombre","Fecha Nac","Edad","Sexo","Nacionalidad","Fecha Matrícula","Fecha Salida","Motivo Salida"]
[null,null,null,1,null,null,null,null,null,{"$f":"IF(I191=\"\",\"\",DATEDIF(I191,TODAY(),\"Y\"))","v":""}]
[null,null,null,2,null,null,null,null,null,"",null,null,null,null,null,null,"Docente:"]
[null,null,null,3,null,null,null,null,null,"",null,null,null,null,null,null,"Grupo Prof.:"]
[null,null,null,4,null,null,null,null,null,"",null,null,null,null,null,null,"Cédula:"]
[null,null,null,5,null,null,null,null,null,""]
[null,null,null,6,null,null,null,null,null,""]
[null,null,null,7,null,null,null,null,null,""]
[null,null,null,8,null,null,null,null,null,""]
[null,null,null,9,null,null,null,null,null,""]
[null,null,null,10,null,null,null,null,null,{"$f":"IF(I200=\"\",\"\",DATEDIF(I200,TODAY(),\"Y\"))","v":""}]
[null,null,null,11,null,null,null,null,null,""]
[null,null,null,12,null,null,null,null,null,""]
[null,null,null,13,null,null,null,null,null,""]
[null,null,null,14,null,null,null,null,null,""]
[null,null,null,15,null,null,null,null,null,""]
[null,null,null,16,null,null,null,null,null,""]
[null,null,null,17,null,null,null,null,null,""]
[null,null,null,18,null,null,null,null,null,""]
[null,null,null,19,null,null,null,null,null,""]
[null,null,null,20,null,null,null,null,null,""]
[null,null,null,21,null,null,null,null,null,""]
[null,null,null,22,null,null,null,null,null,""]
[null,null,null,23,null,null,null,null,null,""]
[null,null,null,24,null,null,null,null,null,""]
[null,null,null,25,null,null,null,null,null,""]
[null,null,null,26,null,null,null,null,null,""]
[null,null,null,27,null,null,null,null,null,""]
[null,null,null,28,null,null,null,null,null,""]
[null,null,null,29,null,null,null,null,null,""]
[null,null,null,30,null,null,null,null,null,""]
[null,null,null,31,null,null,null,null,null,""]
[null,null,null,32,null,null,null,null,null,""]
[null,null,null,33,null,null,null,null,null,""]
[null,null,null,34,null,null,null,null,null,""]
[null,null,null,35,null,null,null,null,null,""]
[null,null,null,36,null,null,null,null,null,""]
[null,null,null,37,null,null,null,null,null,""]
[null,null,null,38,null,null,null,null,null,""]
[null,null,null,39,null,null,null,null,null,""]
[null,null,null,40,null,null,null,null,null,""]

{"sheet":"Resumen","index":9,"n_rows":9,"n_cols":11,"rows_kept":9,"cut":false,"hidden":false,"merged":[[7,5,7,6],[8,5,8,6],[2,5,4,10]]}
[]
[]
[null,null,null,null,null,"Resumen Matrícula Institucional"]
[]
[]
[]
[]
[null,null,null,null,null,"Nivel",null,null,"Total","Hombres ","Mujeres"]
[null,null,null,null,null,"Total",null,null,{"$f":"SUM(J9:K9)","v":1},{"$f":"SUM(Materno!L3+Transicion!L3+Primero!L3+Segundo!L3+Tercero!L3+Cuarto!L3+Quinto!L3+Sexto!L3)","v":1},{"$f":"SUM(Materno!M3+Transicion!M3+Primero!M3+Segundo!M3+Tercero!M3+Cuarto!M3+Quinto!M3+Sexto!M3)","v":0}]

{"sheet":"Creditos","index":10,"n_rows":18,"n_cols":10,"rows_kept":18,"cut":false,"hidden":false,"merged":[[18,4,32,13],[7,4,17,6],[7,7,7,12],[7,13,17,13],[8,9,8,12],[9,9,9,12]]}
[]
[]
[]
[]
[]
[]
[]
[]
[null,null,null,null,null,null,null,"Nombre del programa:",null,"Libro de Matrícula Institucional"]
[null,null,null,null,null,null,null,"Realizado por:",null,"Sjarquin"]
[]
[null,null,null,null,null,null,null,"Detalles del programa:"]
[]
[null,null,null,null,null,null,null,"Este programa está dieñado y pensado para llevar un registro exacto y "]
[null,null,null,null,null,null,null,"actualizado de los estudiantes matriculados, así como los movimientos "]
[null,null,null,null,null,null,null,"producidos durante el año lectivo en la Institución Educativa."]
[null,null,null,null,null,null,null,"Email: sjarquing@hotmail.com  "]
[null,null,null,null,null,null,null,"http://www.sjarquin.webpin.com/"]

{"sheet":"Ayuda","index":11,"n_rows":167,"n_cols":12,"rows_kept":167,"cut":false,"hidden":false,"merged":[[1,3,3,14]]}
[]
[null,null,null,"Ayuda"]
[]
[]
[]
[null,null,null,"Lea cuidadosamente las instrucciones para que pueda operar el programa de una forma eficiente."]
[null,null,null,"1. Para desplazarse a las diferentes opciones utilice el menú de la pestaña \"Menú Principal\"."]
[null,null,null,"2. En la opción \"Principal\" ingrese los datos relacinados con la Institución Educativa."]
[null,null,null,"3. En las opciones de los grupos: \"Preescolar\" y \"Primero y Segundo Ciclos\", debe ingresar información"]
[null,null,null,"similar. Tenga presente que el sistema le da la edad del estudiante automáticamente."]
[null,null,null,"4. Utilice el menú interno en cada nivel para desplazarse a los diferentes grupos "]
[]
[]
[]
[]
[]
[null,null,null,"5. El sistema brinda en forma automática la estadístida grupal y resumen por nivel "]
[]
[]
[]
[]
[]
[]
[]
[]
[null,null,null,"6. El sistema le permite ingresar datos del docente a cargo de cada grupo. En la margen derecha de cada listado"]
[null,null,null,"se puede ingresar esta información:"]
[]
[]
[]
[null,null,null,"7. Cada nivel está identificado con una imagen alusiva al nivel. Ejemplo: "]
[]
[]
[]
[]
[null,null,null,"8. Tenga en cuenta que el correcto y eficiente funcionamiento de este sistema es necesario activar la \"Macros\", por lo que debe dar clic en la opción"]
[null,null,null,"\"Activar Macro\" del mensaje que le sale en pantalla al iniciar el sistema por primera vez.",null,null,null,null,null,null,"Caso contrario haga lo siguiente: "]
[]
[null,null,null,null,"a) Menú \"Archivo\", clic en \"Opciones\"."]
[]
[]
[]
[]
[]
[]
[]
[]
[]
[]
[]
[]
[]
[]
[]
[]
[]
[]
[]
[]
[]
[null,null,null,null,"b)  Haga clic en la opcón \"Centro de Confiaza\" y clic en \"Configuración del Centro de Confianza\"."]
[]
[]
[]
[]
[]
[]
[]
[]
[]
[]
[]
[]
[]
[]
[]
[]
[]
[]
[]
[]
[]
[null,null,null,null,"c) Selecciones la opción: \"Configuración de Macros\" y seleccione la opción \"Habilitar  todas las macros\"."]
[]
[]
[]
[]
[]
[]
[]
[]
[]
[]
[]
[null,null,null,"9. Cuando haya ingresado los datos de todos los grupos, podrá consultar el menú \"Resumen\" para observar el Resumen Estadístico Institucional."]
[]
[]
[]
[]
[]
[]
[]
[]
[]
[]
[]
[]
[]
[]
[]
[]
[]
[]
[null,null,null,"10. Importante: Los datos que permite la generación de la estadística de las listas de estudiantes son las letras: \"H\" y \"M\". Por esta razón es necesario que "]
[null,null,null,"cuando usted reporte un traslado o deserción, borre dichas letras en esa fila para que se actualice la estadística, del Grupo, del Nivel y General."]
[]
[]
[]
[]
[]
[]
[]
[]
[]
[]
[]
[]
[]
[null,null,null,"En caso de cualquier consulta no dude en visitar nuestro sitio web:",null,null,null,null,"http://www.sjarquin.webpin.com/",null,null,"o envíe sus consultas al email:"]
[null,null,null,"sjarquing@hotmail.com."]
[null,null,null,"En Sjarquin estamos para servirle."]
[]
[null,null,null,"Descubra otras aplicaciones muy útiles para la administración de un centro educativo, entre las cuales estás:"]
[]
[null,null,null,"-"]
[]
[]
[]
[]
[]
[]
[]
[]
[]
[null,null,null,"-"]
[]
[]
[]
[]
[]
[]
[]
[]
[]
[]
[]
[null,null,null,"-"]
[]
[]
[]
[]
[]
[]
[]
[]
[]
[null,null,null,"-"]